Workbook

Sheet Collateral Tables
B1: CNH CAPITAL AUSTRALIA RECEIVABLES TRUST SERIES 2013-1 (TERM DEAL)
B2: COLLATERAL DATA TABLES
B4: OUTSTANDING RECEIVABLES | E4: 2016-09-30 | I4: 2016-06-30 | M4: 2016-03-31 | Q4: 2015-12-31 | U4: 2015-09-30 | Y4: 2015-06-30 | AC4: 2015-03-31 | AG4: 2014-12-31 | AK4: 2014-09-30 | AP4: 2014-06-30 | AT4: 2014-03-31 | AX4: 2013-12-31 | BB4: 2013-09-30
B6: Opening Balance | E6: =I13 -> 41989804.85 | I6: 58447655.79 | M6: 95941881.61 | Q6: 106929319.5 | U6: 122384966.5 | Y6: 146319266.8 | AC6: 204214917.5 | AG6: 224805731.8 | AK6: 244850646.1 | AP6: 277467453.6 | AT6: 343183216.4 | AX6: 367572501.2 | BB6: 399999996.3
B7: Principal Repayments - Scheduled | E7: =MIN([5]Sheet1!$B$3+[6]Sheet1!$B$3+[7]Sheet1!$B$3) -> 4770953.26 | I7: 16112532.85 | M7: 37479614.46 | Q7: 8674137.66 | U7: 10381883.78 | Y7: 22268062.23 | AC7: 54555112.8 | AG7: 13888436 | AK7: 14956529.12 | AP7: 32255503 | AT7: 62541048.24 | AX7: 19784632.49 | BB7: 28316894.3
B8: Principal Repayments - Unscheduled | E8: ='[4]17 Oct 16'!$H$23-'Collateral Tables'!E7 -> 1635124.56 | I8: 192295.48 | M8: 14611.36 | Q8: 2313300.23 | U8: 4847899.36 | Y8: 1660682.4 | AC8: 3156225.53 | AG8: 6582118.46 | AK8: 4510240.34 | AP8: 0 | AT8: 2187328.18 | AX8: 4506158.4 | BB8: 3783540.98
A9: =SUM($P9:BC9) -> 2888381.2 | B9: Charge-Offs | E9: ='[4]17 Oct 16'!H37 -> 65366.88 | I9: 153022.61 | M9: 0 | Q9: 0 | U9: 225863.86 | Y9: 5555.68 | AC9: 184312.36 | AG9: 120259.87 | AK9: 578144.82 | AP9: 361304.52 | AT9: 987386.36 | AX9: 98493.91 | BB9: 327059.82
B10: Reinstatements
B11: New Receivables Purchased
B12: Non Cash Change in Receivables
B13: Closing Balance | E13: =E6-E7-E8-E9+E10+E11-E12 -> 35518360.15 | I13: 41989804.85 | M13: 58447655.79 | Q13: 95941881.61 | U13: 106929319.5 | Y13: 122384966.5 | AC13: 146319266.8 | AG13: 204214917.5 | AK13: 224805731.8 | AP13: 244850646.1 | AT13: 277467453.6 | AX13: 343183216.4 | BB13: 367572501.2
B15: PORTFOLIO STATISTICS
B17: Summary
B18: Number of contracts | E18: ='[8]Servicer Recon'!$B$4 -> 1045 | I18: 1225 | M18: 1481 | Q18: 2034 | U18: 2406 | Y18: 2752 | AC18: 3158 | AG18: 3587 | AK18: 3794 | AP18: 3987 | AT18: 4163 | AX18: 4387 | BB18: 4617
B19: Dollar value of contracts | E19: ='[8]Servicer Recon'!$B$5 -> 35518360.15 | I19: 41989804.85 | M19: 58447655.79 | Q19: 95941881.61 | U19: 106929319.5 | Y19: 122384966.5 | AC19: 146319266.8 | AG19: 204214917.5 | AK19: 224805731.8 | AP19: 244850646.1 | AT19: 277467453.6 | AX19: 343183216.4 | BB19: 367572501.2
B20: Number of contracts closed during the Quarter | E20: ='[8]Servicer Recon'!$B$19 -> 178 | I20: 255 | M20: 553 | Q20: 372 | U20: 341 | Y20: 405 | AC20: 427 | AG20: 205 | AK20: 185 | AP20: 174 | AT20: 221 | AX20: 228 | BB20: 183
B21: Dollar value of contracts closed during the Quarter | E21: ='[8]Servicer Recon'!$B$20 -> 4201645.57 | I21: 8505040.81 | M21: 17464869.68 | Q21: 5707145.01 | U21: 8570373.33 | Y21: 8087803.52 | AC21: 15823850.75 | AG21: 7686522.07 | AK21: 7266274.03 | AP21: 9339916.74 | AT21: 10700990.2 | AX21: 9069702.03 | BB21: 8446613.11
A23: =SUM($P23:BB23) -> 1339343.499 | B23: Dollar Value of Recoveries from Collateral | E23: ='[8]Servicer Recon'!$C$16 -> 234693.43 | I23: 77567.04 | M23: 164875.2555 | Q23: 88400 | U23: 81946.49091 | Y23: 131101.0736 | AC23: 238238 | AG23: 124219.3636 | AK23: 488268.8609 | AP23: 73202.57636 | AT23: 19020.85 | AX23: 94500 | BB23: 446.2836364
B24: Dollar Value of Recoveries from Other Sources | E24: 0 | I24: 0 | M24: 0 | Q24: 0 | U24: 0 | Y24: 0 | AC24: 0 | AG24: 0 | AK24: 0 | AP24: 0 | AT24: 0 | AX24: 0 | BB24: 0
B26: Average Term of Contracts (Months) | E26: =[9]Sheet1!$W$1049 -> 57.37912988 | I26: 57.47289186 | M26: 56.97626204 | Q26: 55.50895978 | U26: 55.22764487 | Y26: 54.87199745 | AC26: 54.41296506 | AG26: 53.34777928 | AK26: 52.96104845 | AP26: 52.61744591 | AT26: 52.23297777 | AX26: 51.71925231 | BB26: 51.33729628
B27: Average Term to Maturity (Months) | E27: =[9]Sheet1!$X$1049 -> 9.055689656 | I27: 11.65521116 | M27: 13.17928891 | Q27: 13.94207239 | U27: 16.42091875 | Y27: 18.77265259 | AC27: 20.93650054 | AG27: 22.28225655 | AK27: 24.7713261 | AP27: 27.27897282 | AT27: 29.55346447 | AX27: 31.62549431 | BB27: 33.93763482
B28: Average Residual / Balloon Payment * | E28: =[9]Sheet1!$AI$1049 -> 0.0354236078 | I28: 0.03921009338 | M28: 0.03714036047 | Q28: 0.02832934003 | U28: 0.02988099781 | Y28: 0.03189487738 | AC28: 0.03034398817 | AG28: 0.02671775922 | AK28: 0.02768444398 | AP28: 0.02825207074 | AT28: 0.02967279746 | AX28: 0.02875625437 | BB28: 0.03068307372
B29: Average Seasoning (Months) | E29: =E26-E27 -> 48.32344023 | I29: 45.8176807 | M29: 43.79697313 | Q29: 41.56688739 | U29: 38.80672612 | Y29: 36.09934486 | AC29: 33.47646453 | AG29: 31.06552272 | AK29: 28.18972235 | AP29: 25.33847309 | AT29: 22.6795133 | AX29: 20.093758 | BB29: 17.39966146
B30: Average Dollar Value of Individual Assets | E30: =E19/E18 -> 33988.86139 | I30: 34277.39171 | M30: 39464.99378 | Q30: 47169.06667 | U30: 44442.77618 | Y30: 44471.28143 | AC30: 46332.89006 | AG30: 56931.95358 | AK30: 59252.96042 | AP30: 61412.25134 | AT30: 66650.84161 | AX30: 78227.3117 | BB30: 79612.8441
B31: Weighted Average Interest Rate | E31: =[9]Sheet1!$AA$1049/100 -> 0.05317771076 | I31: 0.05500574831 | M31: 0.05503726823 | Q31: 0.0554501787 | U31: 0.05627726805 | Y31: 0.05686387381 | AC31: 0.05637873975 | AG31: 0.05643184245 | AK31: 0.05653029163 | AP31: 0.05671159343 | AT31: 5.649380812 | AX31: 5.676805232 | BB31: 0.05702300669
B33: Payment in Arrears
A34: 1. 0 - 30 Days | B34: 0 - 30 Days | E34: =IFERROR(VLOOKUP(A34,[10]arrear!$A$2:$D$7,3,FALSE),0) -> 1034 | F34: =IFERROR(VLOOKUP(A34,[10]arrear!$A$2:$D$7,2,FALSE),0) -> 99854.53 | G34: =F34/F$50 -> 0.002811349668 | I34: 1210 | J34: 11209.5 | K34: 0.0002669576589 | M34: 1468 | N34: 765890.26 | O34: 0.01310386618 | Q34: 2026 | R34: 106529.86 | S34: 0.001110358252 | U34: 2393 | V34: 35056.8 | W34: 0.0003278502114 | Y34: 2731 | Z34: 190095.87 | AA34: 0.001553261609 | AC34: 3144 | AD34: 440570.21 | AE34: 0.003011019804 | AG34: 3571 | AH34: 165791.63 | AI34: =AH34/AH$50 -> 0.000811848772 | AK34: 3773 | AL34: 137016.98 | AM34: 0.0006094905983 | AP34: 3958 | AQ34: 196150.04 | AR34: 0.0008011007654 | AT34: 4144 | AU34: 1000907.04 | AV34: 0.003607295295 | AX34: 4375 | AY34: 439735.71 | AZ34: 0.001281343868 | BB34: 4592 | BC34: 151245.6 | BD34: 0.0004114714771
A35: 2. 31 - 60 Days | B35: 31 - 60 Days | E35: =IFERROR(VLOOKUP(A35,[10]arrear!$A$2:$D$7,3,FALSE),0) -> 5 | F35: =IFERROR(VLOOKUP(A35,[10]arrear!$A$2:$D$7,2,FALSE),0) -> 57450.8 | G35: =F35/F$50 -> 0.001617495846 | I35: 3 | J35: 53747.09 | K35: 0.001280003329 | M35: 10 | N35: 224977.21 | O35: 0.003849208441 | Q35: 3 | R35: 26059.35 | S35: 0.0002716159988 | U35: 6 | V35: 26093.11 | W35: 0.0002440220336 | Y35: 8 | Z35: 43163.76 | AA35: 0.0003526884162 | AC35: 11 | AD35: 188256.1 | AE35: 0.001286611832 | AG35: 11 | AH35: 73352.89 | AI35: =AH35/AH$50 -> 0.0003591945726 | AK35: 12 | AL35: 119136.47 | AM35: 0.0005299529911 | AP35: 13 | AQ35: 256735.05 | AR35: 0.00104853736 | AT35: 14 | AU35: 244533.99 | AV35: 0.000881306931 | AX35: 7 | AY35: 47270.05 | AZ35: 0.0001377399819 | BB35: 12 | BC35: 113514.02 | BD35: 0.0003088207622
A36: 3. 61 - 90 Days | B36: 61 - 90 Days | E36: =IFERROR(VLOOKUP(A36,[10]arrear!$A$2:$D$7,3,FALSE),0) -> 1 | F36: =IFERROR(VLOOKUP(A36,[10]arrear!$A$2:$D$7,2,FALSE),0) -> 4987.03 | G36: 0.0001404071015 | I36: 5 | J36: 66469.03 | K36: 0.001582980208 | M36: 0 | N36: 0 | O36: 0 | Q36: 1 | R36: 11130.79 | S36: 0.0001160159652 | U36: 3 | V36: 38096.56 | W36: 0.0003562779617 | Y36: 6 | Z36: 29444.07 | AA36: 0.0002405856768 | AC36: 1 | AD36: 6072.16 | AE36: 4.149938783e-05 | AG36: 2 | AH36: 4505.4 | AI36: 2.206205137e-05 | AK36: 2 | AL36: 30127.02 | AM36: 0.0001340135759 | AP36: 4 | AQ36: 84804.99 | AR36: 0.0003463539564 | AT36: 3 | AU36: 32291.39 | AV36: 0.0001163790188 | AX36: 5 | AY36: 79546.5 | AZ36: 0.0002317901814 | BB36: 6 | BC36: 75092.27 | BD36: 0.0002042924042
A37: 4. 91 - 120 Days | B37: 91 - 120 Days | E37: =IFERROR(VLOOKUP(A37,[10]arrear!$A$2:$D$7,3,FALSE),0) -> 1 | F37: =IFERROR(VLOOKUP(A37,[10]arrear!$A$2:$D$7,2,FALSE),0) -> 27154.62 | G37: 0.0007645234714 | I37: 6 | J37: 89137.68 | K37: 0.002122841016 | M37: 2 | N37: 114659.97 | O37: 0.001961754812 | Q37: 1 | R37: 3471.31 | S37: 3.618138337e-05 | U37: 1 | V37: 26482.62 | W37: 0.0002476647202 | Y37: 5 | Z37: 91393.24 | AA37: 0.0007467685175 | AC37: 1 | AD37: 1157.36 | AE37: 7.909826404e-06 | AG37: 2 | AH37: 24211.51 | AI37: 0.0001185589686 | AK37: 6 | AL37: 43506.95 | AM37: 0.0001935313199 | AP37: 7 | AQ37: 114330.86 | AR37: 0.0004669412224 | AT37: 1 | AU37: 8490.21 | AV37: 3.059894012e-05 | AX37: 0 | AY37: 0 | AZ37: 0 | BB37: 4 | BC37: 69228.5 | BD37: 0.0001883397147
A38: 5. 121 - 150 Days | B38: 121 - 150 Days | E38: =IFERROR(VLOOKUP(A38,[10]arrear!$A$2:$D$7,3,FALSE),0) -> 1 | F38: =IFERROR(VLOOKUP(A38,[10]arrear!$A$2:$D$7,2,FALSE),0) -> 6616.85 | G38: 0.0001862937921 | I38: 1 | J38: 27158.79 | K38: 0.0006467948612 | M38: 0 | N38: 0 | O38: 0 | Q38: 1 | R38: 8146.56 | S38: 8.491140536e-05 | U38: 2 | V38: 22928.68 | W38: 0.0002144283729 | Y38: 2 | Z38: 24056.86 | AA38: 0.0001965671168 | AC38: 1 | AD38: 11015.58 | AE38: 7.528454892e-05 | AG38: 1 | AH38: 4457.73 | AI38: 2.182862082e-05 | AK38: 1 | AL38: 28318.99 | AM38: 0.0001259709429 | AP38: 4 | AQ38: 55109.56 | AR38: 0.0002250741866 | AT38: 0 | AU38: 0 | AV38: 0 | AX38: 0 | AY38: 0 | AZ38: 0 | BB38: 3 | BC38: 96751.02 | BD38: 0.0002632161538
A39: 6. 151 - 180 Days | B39: 151 - 180 Days | E39: =IFERROR(VLOOKUP(A39,[10]arrear!$A$2:$D$7,3,FALSE),0) -> 3 | F39: =IFERROR(VLOOKUP(A39,[10]arrear!$A$2:$D$7,2,FALSE),0) -> 48946.26 | G39: 0.001378055175 | I39: 0 | J39: 0 | K39: 0 | M39: 1 | N39: 6680.79 | O39: 0.0001143038144 | Q39: 2 | R39: 31329.64 | S39: 0.0003265481089 | U39: 1 | V39: 1501.27 | W39: 1.403983498e-05 | Y39: 0 | Z39: 0 | AA39: 0 | AC39: 0 | AD39: 0 | AE39: 0 | AG39: 0 | AH39: 0 | AI39: 0 | AK39: 0 | AL39: 0 | AM39: 0 | AP39: 1 | AQ39: 12986.28 | AR39: 5.303755659e-05 | AT39: 1 | AU39: 35526.21 | AV39: 0.0001280373951 | AX39: 0 | AY39: 0 | AZ39: 0 | BB39: 0 | BC39: 0 | BD39: 0
B40: Total | E40: =SUM(E34:E39) -> 1045 | F40: =SUM(F34:F39) -> 245010.09 | G40: =SUM(G34:G39) -> 0.006898125053 | I40: 1225 | J40: 247722.09 | K40: 0.005899577073 | M40: 1481 | N40: 1112208.23 | O40: 0.01902913325 | Q40: 2034 | R40: 186667.51 | S40: 0.001945631114 | U40: 2406 | V40: 150159.04 | W40: 0.001404283135 | Y40: 2752 | Z40: 378153.8 | AA40: 0.003089871336 | AC40: 3158 | AD40: 647071.41 | AE40: 0.004422325399 | AG40: =SUM(AG34:AG39) -> 3587 | AH40: =SUM(AH34:AH39) -> 272319.16 | AI40: =SUM(AI34:AI39) -> 0.001333492985 | AK40: 3794 | AL40: 358106.41 | AM40: 0.001592959428 | AP40: 3987 | AQ40: 720116.78 | AR40: 0.002941045047 | AT40: 4163 | AU40: 1321748.84 | AV40: 0.00476361758 | AX40: 4387 | AY40: 566552.26 | AZ40: 0.001650874031 | BB40: 4617 | BC40: 505831.41 | BD40: 0.001376140512
B41: * Expressed as a % of Aggreg. Rec. closing bal. | F41: > 30 days | G41: =SUM(G35:G39) -> 0.004086775386 | J41: > 30 days | K41: 0.005632619414 | N41: > 30 days | O41: 0.005925267067 | R41: > 30 days | S41: 0.0008352728616 | V41: > 30 days | W41: 0.001076432924 | Z41: > 30 days | AA41: 0.001536609727 | AD41: > 30 days | AE41: 0.001411305596 | AH41: > 30 days | AI41: =SUM(AI35:AI39) -> 0.0005216442134 | AL41: > 30 days | AM41: 0.0009834688297 | AQ41: > 30 days | AR41: 0.002139944282 | AU41: > 30 days | AV41: 0.001156322285 | AY41: > 30 days | AZ41: 0.0003695301633 | BC41: > 30 days | BD41: 0.0009646690349
A43: 0 - 30 Days | B43: Account Balances in Arrears
A44: 1. 0 - 30 Days | B44: 0 - 30 Days | E44: =E34 -> 1034 | F44: =IFERROR(VLOOKUP(A44,[10]arrear!$A$2:$D$7,4,FALSE),0) -> 35253151.43 | G44: =F44/F$50 -> 0.9925331936 | I44: 1210 | J44: 41517283.82 | K44: 0.9887467677 | M44: 1468 | N44: 57703504.13 | O44: 0.9872680666 | Q44: 2026 | R44: 95582524 | S44: 0.996254424 | U44: 2393 | V44: 106621136.7 | W44: 0.9971178827 | Y44: 2731 | Z44: 121951353.2 | AA44: 0.9964569724 | AC44: 3144 | AD44: 145935249.8 | AE44: 0.9973754853 | AG44: =AG34 -> 3571 | AH44: 203833926.1 | AI44: =AH44/AH$50 -> 0.9981343605 | AK44: 3773 | AL44: 224048458.1 | AM44: 0.9966314303 | AP44: 3958 | AQ44: 243231179.4 | AR44: 0.9933858998 | AT44: 4144 | AU44: 276040244.9 | AV44: 0.9948563022 | AX44: 4375 | AY44: 342575641.1 | AZ44: 0.9982295891 | BB44: 4592 | BC44: 366297114.9 | BD44: 0.9965302456
A45: 2. 31 - 60 Days | B45: 31 - 60 Days | E45: =E35 -> 5 | F45: =IFERROR(VLOOKUP(A45,[10]arrear!$A$2:$D$7,4,FALSE),0) -> 87089.48 | G45: =F45/F$50 -> 0.002451956668 | I45: 3 | J45: 112164.15 | K45: 0.002671223417 | M45: 10 | N45: 589188.08 | O45: 0.01008061097 | Q45: 3 | R45: 227922.3 | S45: 0.00237562883 | U45: 6 | V45: 128317.27 | W45: 0.001200019514 | Y45: 8 | Z45: 98793.29 | AA45: 0.0008072338689 | AC45: 11 | AD45: 338093.98 | AE45: 0.002310659337 | AG45: =AG35 -> 11 | AH45: 205993.72 | AI45: =AH45/AH$50 -> 0.001008710443 | AK45: 12 | AL45: 366331.27 | AM45: 0.001629545951 | AP45: 13 | AQ45: 775589.74 | AR45: 0.003167603404 | AT45: 14 | AU45: 805069.69 | AV45: 0.002901492335 | AX45: 7 | AY45: 207562.01 | AZ45: 0.0006048139888 | BB45: 12 | BC45: 447641.17 | BD45: 0.001217830955
A46: 3. 61 - 90 Days | B46: 61 - 90 Days | E46: 1 | F46: =IFERROR(VLOOKUP(A46,[10]arrear!$A$2:$D$7,4,FALSE),0) -> 4611.7 | G46: 0.0001298398907 | I46: 5 | J46: 141115.44 | K46: 0.003360707212 | M46: 0 | N46: 0 | O46: 0 | Q46: 1 | R46: 20394.29 | S46: 0.0002125692102 | U46: 3 | V46: 109578.02 | W46: 0.001024770573 | Y46: 6 | Z46: 53323.19 | AA46: 0.000435700491 | AC46: 1 | AD46: 8846.11 | AE46: 6.045758835e-05 | AG46: 2 | AH46: 60299.28 | AI46: 0.00029527363 | AK46: 2 | AL46: 177891.86 | AM46: 0.0007913137203 | AP46: 4 | AQ46: 319334.42 | AR46: 0.001304200847 | AT46: 3 | AU46: 415013.8 | AV46: 0.00149572065 | AX46: 5 | AY46: 400013.29 | AZ46: 0.001165596891 | BB46: 6 | BC46: 318477.56 | BD46: 0.0008664346733
A47: 4. 91 - 120 Days | B47: 91 - 120 Days | E47: 1 | F47: =IFERROR(VLOOKUP(A47,[10]arrear!$A$2:$D$7,4,FALSE),0) -> 65650.93 | G47: 0.00184836602 | I47: 6 | J47: 193901.03 | K47: 0.004617812126 | M47: 2 | N47: 138517.26 | O47: 0.002369936965 | Q47: 1 | R47: 12579.68 | S47: 0.000131117712 | U47: 1 | V47: 23924.9 | W47: 0.0002237449945 | Y47: 5 | Z47: 250223.38 | AA47: 0.002044559779 | AC47: 1 | AD47: 5555.68 | AE47: 3.796957244e-05 | AG47: 2 | AH47: 22138.63 | AI47: 0.0001084084859 | AK47: 6 | AL47: 118419.08 | AM47: 0.0005267618358 | AP47: 7 | AQ47: 393447.67 | AR47: 0.001606888429 | AT47: 1 | AU47: 174400.78 | AV47: 0.0006285449977 | AX47: 0 | AY47: 0 | AZ47: 0 | BB47: 4 | BC47: 167153.97 | BD47: 0.0004547510204
A48: 5. 121 - 150 Days | B48: 121 - 150 Days | E48: 1 | F48: =IFERROR(VLOOKUP(A48,[10]arrear!$A$2:$D$7,4,FALSE),0) -> 62788.92 | G48: 0.001767787694 | I48: 1 | J48: 25340.41 | K48: 0.0006034895873 | M48: 0 | N48: 0 | O48: 0 | Q48: 1 | R48: 22947.81 | S48: 0.0002391844898 | U48: 2 | V48: 44989.45 | W48: 0.0004207400759 | Y48: 2 | Z48: 31273.46 | AA48: 0.0002555335095 | AC48: 1 | AD48: 31521.29 | AE48: 0.0002154281571 | AG48: 1 | AH48: 92559.78 | AI48: 0.0004532469084 | AK48: 1 | AL48: 94631.56 | AM48: 0.0004209481637 | AP48: 4 | AQ48: 119310.85 | AR48: 0.0004872801109 | AT48: 0 | AU48: 0 | AV48: 0 | AX48: 0 | AY48: 0 | AZ48: 0 | BB48: 3 | BC48: 342113.59 | BD48: 0.0009307377153
A49: 6. 151 - 180 Days | B49: 151 - 180 Days | E49: 3 | F49: =IFERROR(VLOOKUP(A49,[10]arrear!$A$2:$D$7,4,FALSE),0) -> 45067.69 | G49: 0.001268856158 | I49: 0 | J49: 0 | K49: 0 | M49: 1 | N49: 16446.32 | O49: 0.0002813854513 | Q49: 2 | R49: 75513.53 | S49: 0.0007870757664 | U49: 1 | V49: 1373.2 | W49: 1.284212793e-05 | Y49: 0 | Z49: 0 | AA49: 0 | AC49: 0 | AD49: 0 | AE49: 0 | AG49: 0 | AH49: 0 | AI49: 0 | AK49: 0 | AL49: 0 | AM49: 0 | AP49: 1 | AQ49: 11784.03 | AR49: 4.812742048e-05 | AT49: 1 | AU49: 32724.45 | AV49: 0.0001179397784 | AX49: 0 | AY49: 0 | AZ49: 0 | BB49: 0 | BC49: 0 | BD49: 0
B50: Total | E50: =SUM(E44:E49) -> 1045 | F50: =SUM(F44:F49) -> 35518360.15 | G50: =SUM(G44:G49) -> 1 | I50: 1225 | J50: 41989804.85 | K50: 1 | M50: 1481 | N50: 58447655.79 | O50: 1 | Q50: 2034 | R50: 95941881.61 | S50: 1 | U50: 2406 | V50: 106929319.5 | W50: 1 | Y50: 2752 | Z50: 122384966.5 | AA50: 1 | AC50: 3158 | AD50: 146319266.8 | AE50: 1 | AG50: =SUM(AG44:AG49) -> 3587 | AH50: =SUM(AH44:AH49) -> 204214917.5 | AI50: =SUM(AI44:AI49) -> 1 | AK50: 3794 | AL50: 224805731.8 | AM50: 1 | AP50: 3987 | AQ50: 244850646.1 | AR50: 1 | AT50: 4163 | AU50: 277467453.6 | AV50: 1 | AX50: 4387 | AY50: 343183216.4 | AZ50: 1 | BB50: 4617 | BC50: 367572501.2 | BD50: 1
A51: NSW | F51: > 30 days | G51: =SUM(G45:G49) -> 0.007466806431 | J51: > 30 days | K51: 0.01125323234 | N51: > 30 days | O51: 0.01273193338 | R51: > 30 days | S51: 0.003745576009 | V51: > 30 days | W51: 0.002882117285 | Z51: > 30 days | AA51: 0.003543027648 | AD51: > 30 days | AE51: 0.002624514655 | AH51: > 30 days | AI51: =SUM(AI45:AI49) -> 0.001865639468 | AL51: > 30 days | AM51: 0.003368569671 | AQ51: > 30 days | AR51: 0.006614100211 | AU51: > 30 days | AV51: 0.005143697761 | AY51: > 30 days | AZ51: 0.00177041088 | BC51: > 30 days | BD51: 0.003469754364
F52: >90 days | G52: =SUM(G47:G49) -> 0.004885009873 | J52: >90 days | K52: 0.005221301713 | N52: >90 days | O52: 0.002651322417 | R52: >90 days | S52: 0.001157377968 | V52: >90 days | W52: 0.0006573271983 | Z52: >90 days | AA52: 0.002300093288 | AD52: >90 days | AE52: 0.0002533977296 | AH52: >90 days | AI52: =SUM(AI47:AI49) -> 0.0005616553942 | AL52: >90 days | AM52: 0.0009477099995 | AQ52: >90 days | AR52: 0.00214229596 | AU52: >90 days | AV52: 0.0007464847761 | AY52: >90 days | AZ52: 0 | BC52: >90 days | BD52: 0.001385488736
A54: VIC | B54: Geographic Distribution | G54: =AVERAGE((SUM(G47:G49)+AVERAGE(SUM(K47:K49)))) -> 0.01010631159 | K54: 0.00787262413 | O54: 0.003808700385 | S54: 0.001814705166 | W54: 0.002957420486 | AA54: 0.002553491018 | AE54: 0.0008150531238
A55: NSW | B55: New South Wales | E55: =F55/F$63 -> 0.305291901 | F55: =IFERROR(VLOOKUP(A55,[10]Geographic!$A$5:$C$12,3,FALSE),0) -> 10843467.69 | I55: 0.3210739194 | J55: 13481831.22 | M55: 0.3414366513 | N55: 19956171.87 | Q55: 0.3084317559 | R55: 29591523.01 | U55: 0.309178763 | V55: 33060274.73 | Y55: 0.3097084684 | Z55: 37903660.53 | AC55: 0.3153440706 | AD55: 46140913.2 | AG55: =AH55/AH$63 -> 0.300437907 | AH55: 61353902.39 | AK55: 0.3078342636 | AL55: 69202906.9 | AP55: 0.3101004732 | AQ55: 75928301.22 | AT55: 0.3178575743 | AU55: 88195131.75 | AX55: 0.3046258425 | AY55: 104542476.4 | BB55: 0.3059472855 | BC55: 112457809
A56: VIC | B56: Victoria | E56: 0.1587020855 | F56: =IFERROR(VLOOKUP(A56,[10]Geographic!$A$5:$C$12,3,FALSE),0) -> 5636837.83 | I56: 0.1600570558 | J56: 6720764.54 | M56: 0.1803369414 | N56: 10540271.48 | Q56: 0.1674616518 | R56: 16066585.97 | U56: 0.1696380894 | V56: 18139285.46 | Y56: 0.1706685794 | Z56: 20887268.37 | AC56: 0.1811539969 | AD56: 26506320.01 | AG56: 0.1735790475 | AH56: 35447430.87 | AK56: 0.1726116131 | AL56: 38804080 | AP56: 0.1737170385 | AQ56: 42534729.12 | AT56: 0.1796111746 | AU56: 49836255.27 | AX56: 0.1734633512 | AY56: 59529710.81 | BB56: 0.1756070784 | BC56: 64548333.02
A57: QLD | B57: Queensland | E57: 0.0748621048 | F57: =IFERROR(VLOOKUP(A57,[10]Geographic!$A$5:$C$12,3,FALSE),0) -> 2658979.2 | I57: 0.08376827453 | J57: 3517413.5 | M57: 0.09098831438 | N57: 5318053.68 | Q57: 0.07646201739 | R57: 7335909.82 | U57: 0.08887646994 | V57: 9503500.45 | Y57: 0.1025257713 | Z57: 12547613.08 | AC57: 0.1099017511 | AD57: 16080743.64 | AG57: 0.09950090027 | AH57: 20319568.14 | AK57: 0.1064225935 | AL57: 23924409.01 | AP57: 0.1138538094 | AQ57: 27877178.79 | AT57: 0.1169664584 | AU57: 32454385.37 | AX57: 0.1091496833 | AY57: 37458339.39 | BB57: 0.1150399122 | BC57: 42285508.27
A58: SA | B58: South Australia | E58: 0.2114532146 | F58: =IFERROR(VLOOKUP(A58,[10]Geographic!$A$5:$C$12,3,FALSE),0) -> 7510471.43 | I58: 0.2013045286 | J58: 8452737.87 | M58: 0.1833568937 | N58: 10716780.61 | Q58: 0.2211885796 | R58: 21221248.52 | U58: 0.2146368937 | V58: 22950976.98 | Y58: 0.2059836974 | Z58: 25209307.9 | AC58: 0.1964518983 | AD58: 28744697.73 | AG58: 0.2085032329 | AH58: 42579470.51 | AK58: 0.201569015 | AL58: 45313869.93 | AP58: 0.1974342221 | AQ58: 48341896.84 | AT58: 0.1897196694 | AU58: 52641033.58 | AX58: 0.2027304143 | AY58: 69573675.65 | BB58: 0.1964366123 | BC58: 72204696.93
A59: NT | B59: Northern Territory | E59: 0.0005935693515 | F59: =IFERROR(VLOOKUP(A59,[10]Geographic!$A$5:$C$12,3,FALSE),0) -> 21082.61 | I59: 0.0005996557995 | J59: 25179.43 | M59: 0.0004993856401 | N59: 29187.92 | Q59: 0.0003451047597 | R59: 33110 | U59: 0.0005551332439 | V59: 59360.02 | Y59: 0.0005529664463 | Z59: 67674.78 | AC59: 0.001029706909 | AD59: 150665.96 | AG59: 0.0008135112852 | AH59: 166131.14 | AK59: 0.0008938231173 | AL59: 200936.56 | AP59: 0.001867299381 | AQ59: 457209.46 | AT59: 0.00177104404 | AU59: 491407.08 | AX59: 0.001668558987 | AY59: 572621.44 | BB59: 0.001668146986 | BC59: 613164.96
A60: ACT | B60: Australian Capital Territory | E60: 6.561282644e-05 | F60: =IFERROR(VLOOKUP(A60,[10]Geographic!$A$5:$C$12,3,FALSE),0) -> 2330.46 | I60: 0.000109593984 | J60: 4601.83 | M60: 0.0001295909972 | N60: 7574.29 | Q60: 0.0001250290259 | R60: 11995.52 | U60: 0.0001528649025 | V60: 16345.74 | Y60: 0.0004021470235 | Z60: 49216.75 | AC60: 0.0006521199981 | AD60: 95417.72 | AG60: 0.0006019383966 | AH60: 122924.8 | AK60: 0.000716496144 | AL60: 161072.44 | AP60: 0.000809483059 | AQ60: 198202.45 | AT60: 0.0008274256205 | AU60: 229583.68 | AX60: 0.0007719315728 | AY60: 264913.96 | BB60: 0.0008142892328 | BC60: 299310.33
A61: TAS | B61: Tasmania | E61: 0.01045583801 | F61: =IFERROR(VLOOKUP(A61,[10]Geographic!$A$5:$C$12,3,FALSE),0) -> 371374.22 | I61: 0.01302836562 | J61: 547058.53 | M61: 0.01235437556 | N61: 722084.29 | Q61: 0.009693729729 | R61: 930034.67 | U61: 0.01094122702 | V61: 1169937.96 | Y61: 0.01149807571 | Z61: 1407191.61 | AC61: 0.01208816186 | AD61: 1768730.98 | AG61: 0.01060813929 | AH61: 2166340.29 | AK61: 0.01104807462 | AL61: 2483670.5 | AP61: 0.01153000221 | AQ61: 2823128.49 | AT61: 0.01185137892 | AU61: 3288371.93 | AX61: 0.01076270381 | AY61: 3693579.31 | BB61: 0.01100606002 | BC61: 4045525.01
A62: WA | B62: Western Australia | E62: 0.2385756739 | F62: =IFERROR(VLOOKUP(A62,[10]Geographic!$A$5:$C$12,3,FALSE),0) -> 8473816.71 | I62: 0.2200586062 | J62: 9240217.93 | M62: 0.190897847 | N62: 11157531.65 | Q62: 0.2162921318 | R62: 20751474.1 | U62: 0.2060205588 | V62: 22029638.16 | Y62: 0.1986602944 | Z62: 24313033.48 | AC62: 0.1833782943 | AD62: 26831777.57 | AG62: 0.2059553233 | AH62: 42059149.36 | AK62: 0.198904121 | AL62: 44714786.49 | AP62: 0.1906876722 | AQ62: 46689999.74 | AT62: 0.1813952747 | AU62: 50331284.97 | AX62: 0.1968275143 | AY62: 67547899.42 | BB62: 0.1934806154 | BC62: 71118153.72
B63: Total | E63: =SUM(E55:E62) -> 1 | F63: =SUM(F55:F62) -> 35518360.15 | I63: 1 | J63: 41989804.85 | M63: 1 | N63: 58447655.79 | Q63: 1 | R63: 95941881.61 | U63: 1 | V63: 106929319.5 | Y63: 1 | Z63: 122384966.5 | AC63: 1 | AD63: 146319266.8 | AG63: =SUM(AG55:AG62) -> 1 | AH63: =SUM(AH55:AH62) -> 204214917.5 | AK63: 1 | AL63: 224805731.8 | AP63: 1 | AQ63: 244850646.1 | AT63: 1 | AU63: 277467453.6 | AX63: 1 | AY63: 343183216.4 | BB63: 1 | BC63: 367572501.2
A64: AG
A65: CE | B65: Top Industry Distribution
A66: AGRICULTURAL MACHINERY | B66: Agricultural | E66: =F66/F$69 -> 0.9921438806 | F66: =IFERROR(VLOOKUP(A66,'[10]Top Industrial'!$A$2:$C$3,3,FALSE),0) -> 35239323.67 | I66: 0.9858456599 | J66: 41395466.87 | M66: 0.9811303866 | N66: 57344771.12 | Q66: 0.9849128605 | R66: 94494393.06 | U66: 0.981795561 | V66: 104982731.2 | Y66: 0.9792455592 | Z66: 119844935 | AC66: 0.9783874594 | AD66: 143156935.7 | AG66: =AH66/AH$69 -> 0.9812581441 | AH66: 200387550.9 | AK66: 0.9798318614 | AL66: 220271818.7 | AP66: 0.9786927551 | AQ66: 239633553.4 | AT66: 0.9771467095 | AU66: 271126409.3 | AX66: 0.9791638656 | AY66: 336032604.8 | BB66: 0.9764435228 | BC66: 358913787.9
A67: CONSTRUCTION EQUIPMENT | B67: Construction | E67: =F67/F$69 -> 0.00785611945 | F67: =IFERROR(VLOOKUP(A67,'[10]Top Industrial'!$A$2:$C$3,3,FALSE),0) -> 279036.48 | I67: 0.01415434013 | J67: 594337.98 | M67: 0.01886961342 | N67: 1102884.67 | Q67: 0.01508713948 | R67: 1447488.55 | U67: 0.01820443896 | V67: 1946588.27 | Y67: 0.02075444078 | Z67: 2540031.54 | AC67: 0.02161254057 | AD67: 3162331.09 | AG67: =AH67/AH$69 -> 0.01874185592 | AH67: 3827366.56 | AK67: 0.02016813857 | AL67: 4533913.15 | AP67: 0.0213072449 | AQ67: 5217092.68 | AT67: 0.02285329049 | AU67: 6341044.32 | AX67: 0.02083613437 | AY67: 7150611.61 | BB67: 0.02355647724 | BC67: 8658713.26
A68: MOTOR VEHICLE - AG | B68: Motor Vehicle AG | E68: =F68/F$69 -> 0 | F68: =IFERROR(VLOOKUP(A68,'[10]Top Industrial'!$A$2:$C$3,3,FALSE),0) -> 0 | I68: 0 | J68: 0 | M68: 0 | N68: 0 | Q68: 0 | R68: 0 | U68: 0 | V68: 0 | Y68: 0 | Z68: 0 | AC68: 0 | AD68: 0 | AG68: =AH68/AH$69 -> 0 | AH68: 0 | AK68: 0 | AL68: 0 | AP68: 0 | AQ68: 0 | AT68: 0 | AU68: 0 | AX68: 0 | AY68: 0 | BB68: 0 | BC68: 0
B69: Total | E69: =SUM(E66:E68) -> 1 | F69: =SUM(F66:F68) -> 35518360.15 | I69: 1 | J69: 41989804.85 | M69: 1 | N69: 58447655.79 | Q69: 1 | R69: 95941881.61 | U69: 1 | V69: 106929319.5 | Y69: 1 | Z69: 122384966.5 | AC69: 1 | AD69: 146319266.8 | AG69: =SUM(AG66:AG68) -> 1 | AH69: =SUM(AH66:AH68) -> 204214917.5 | AK69: 1 | AL69: 224805731.8 | AP69: 1 | AQ69: 244850646.1 | AT69: 1 | AU69: 277467453.6 | AX69: 1 | AY69: 343183216.4 | BB69: 1 | BC69: 367572501.2
A70: COMBINE
A71: 40-100 HP TRACTOR | B71: Collateral Types
A72: 100<140 HP TRACTOR | B72: 100-140 HP TRACTOR | E72: =IFERROR(F72/F$108,0) -> 0.09017245831 | F72: =IFERROR(VLOOKUP(A72,'[10]Collateral Type'!$A$2:$C$31,3,FALSE),0) -> 3202777.85 | I72: 0.09523433996 | J72: 3998871.35 | M72: 0.09019445466 | N72: 5271654.44 | Q72: 0.07792517871 | R72: 7476288.27 | U72: 0.08549906661 | V72: 9142357.01 | Y72: 0.09200083345 | Z72: 11259518.92 | AC72: 0.09601730631 | AD72: 14049181.86 | AG72: =IFERROR(AH72/AH$108,0) -> 0.08751043253 | AH72: 17870935.76 | AK72: 0.09120830169 | AL72: 20504149.01 | AP72: 0.09518533073 | AQ72: 23306189.73 | AT72: 0.09455824814 | AU72: 26236836.33 | AX72: =AY72/$AY$108 -> 0.08761331427 | AY72: 30067418.99 | BB72: 0.08991845161 | BC72: 33059288.45
A73: 4 EWD Tractors | B73: 4 EWD Tractors | E73: 0.1478389176 | F73: =IFERROR(VLOOKUP(A73,'[10]Collateral Type'!$A$2:$C$31,3,FALSE),0) -> 5250995.92 | I73: 0.1399960419 | J73: 5878406.48 | M73: 0.1585563456 | N73: 9267246.71 | Q73: 0.1397488355 | R73: 13407766.23 | U73: 0.1371448576 | V73: 14664806.3 | Y73: 0.1301420429 | Z73: 15927429.56 | AC73: 0.1322829179 | AD73: 19355539.56 | AG73: 0.1319863239 | AH73: 26953576.24 | AK73: 0.127011154 | AL73: 28552835.43 | AP73: 0.1241214499 | AQ73: 30391217.2 | AT73: 0.1274159902 | AU73: 35353790.36 | AX73: =AY73/$AY$108 -> 0.1245671882 | AY73: 42749368.29 | BB73: 0.1233070393 | BC73: 45334888.53
A74: 40<100 HP Tractor | B74: 40<100 HP Tractor | E74: =IFERROR(F74/F$108,0) -> 0 | F74: =IFERROR(VLOOKUP(A74,'[10]Collateral Type'!$A$2:$C$31,3,FALSE),0) -> 0 | I74: 0 | J74: 0 | M74: 0 | N74: 0 | Q74: 0 | R74: 0 | U74: 0 | V74: 0 | Y74: 0 | Z74: 0 | AC74: 0 | AD74: 0 | AG74: =IFERROR(AH74/AH$108,0) -> 0 | AH74: 0 | AK74: 0 | AL74: 0 | AP74: 0 | AT74: 0 | AX74: 0 | BB74: 0
A75: 40<60 HP TRACTOR | B75: 40-60 HP TRACTOR | E75: =IFERROR(F75/F$108,0) -> 0.003217854358 | F75: =IFERROR(VLOOKUP(A75,'[10]Collateral Type'!$A$2:$C$31,3,FALSE),0) -> 114292.91 | I75: 0.004153728521 | J75: 174414.25 | M75: 0.004057381888 | N75: 237144.46 | Q75: 0.003544288524 | R75: 340045.71 | U75: 0.00555829732 | V75: 594344.95 | Y75: 0.00675644259 | Z75: 826887 | AC75: 0.007679943281 | AD75: 1123723.67 | AG75: =IFERROR(AH75/AH$108,0) -> 0.007120534816 | AH75: 1454119.43 | AK75: 0.008389819221 | AL75: 1886079.45 | AP75: 0.00944911846 | AQ75: 2313622.76 | AT75: 0.01016631037 | AU75: 2820820.25 | AX75: 0.009510185446 | AY75: 3263736.03 | BB75: 0.0102989267 | BC75: 3786488.56
A76: 4WD VEHICLE | B76: 4WD VEHICLE | E76: 0.0001507096605 | F76: =IFERROR(VLOOKUP(A76,'[10]Collateral Type'!$A$2:$C$31,3,FALSE),0) -> 5352.96 | I76: 0.000248652263 | J76: 10440.86 | M76: 0.000178636078 | N76: 10440.86 | Q76: 0.0001592299395 | R76: 15276.82 | U76: 0.0001428683926 | V76: 15276.82 | Y76: 0.0001757837634 | Z76: 21513.29 | AC76: 0.0001470297827 | AD76: 21513.29 | AG76: 0.0001267399087 | AH76: 25882.18 | AK76: 0.0001151313171 | AL76: 25882.18 | AP76: 0.0001226655125 | AQ76: 30034.73 | AT76: 0.0001475800836 | AU76: 40948.67 | AX76: 0.0001338336719 | AY76: 45929.47 | BB76: 0.0001276589616 | BC76: 46934.91
A77: 60<100 HP TRACTOR | B77: 60-100 HP TRACTOR | E77: 0.03519813879 | F77: =IFERROR(VLOOKUP(A77,'[10]Collateral Type'!$A$2:$C$31,3,FALSE),0) -> 1250180.17 | I77: 0.0413056397 | J77: 1734415.75 | M77: 0.03691360519 | N77: 2157513.69 | Q77: 0.03479230722 | R77: 3338039.42 | U77: 0.04337723032 | V77: 4638297.72 | Y77: 0.05140702449 | Z77: 6291446.97 | AC77: 0.05704074803 | AD77: 8346160.43 | AG77: 0.05353461669 | AH77: 10932567.33 | AK77: 0.05890042773 | AL77: 13241153.76 | AP77: 0.06449970299 | AQ77: 15792793.95 | AT77: 0.06617098319 | AU77: 18360294.21 | AX77: 0.06217695796 | AY77: 21338088.42 | BB77: 0.06601199806 | BC77: 24269876.16
A78: Backhoes | B78: Backhoes | E78: 0 | F78: =IFERROR(VLOOKUP(A78,'[10]Collateral Type'!$A$2:$C$31,3,FALSE),0) -> 0 | I78: 0.0006957272153 | J78: 29213.45 | M78: 0.0006087619686 | N78: 35580.71 | Q78: 0.0005297211098 | R78: 50822.44 | U78: 0.0006733943537 | V78: 72005.6 | Y78: 0.0007563026134 | Z78: 92560.07 | AC78: 0.0007832239219 | AD78: 114600.75 | AG78: 0.0006862170586 | AH78: 140135.76 | AK78: 0.000747548822 | AL78: 168053.26 | AP78: 0.0008404935959 | AQ78: 205795.4 | AT78: 0.0008818979913 | AU78: 244697.99 | AX78: 0.0008232606564 | AY78: 282529.24 | BB78: 0.0008685204008 | BC78: 319318.96
A79: BALERS, WINDROWERS, MOWERS, RAKES | B79: BALERS, WINDROWERS, MOWERS, RAKES | E79: 0.02994160585 | F79: =IFERROR(VLOOKUP(A79,'[10]Collateral Type'!$A$2:$C$31,3,FALSE),0) -> 1063476.74 | I79: 0.0337628828 | J79: 1417696.86 | M79: 0.03200088669 | N79: 1870376.81 | Q79: 0.02615415007 | R79: 2509278.37 | U79: 0.03032462271 | V79: 3242591.27 | Y79: 0.03312480802 | Z79: 4053978.52 | AC79: 0.03443842311 | AD79: 5039004.82 | AG79: 0.03211397155 | AH79: 6558152.05 | AK79: 0.03431566227 | AL79: 7714357.57 | AP79: 0.03713651781 | AQ79: 9092900.38 | AT79: 0.03763106189 | AU79: 10441394.92 | AX79: 0.03604383276 | AY79: 12369638.46 | BB79: 0.03930031066 | BC79: 14449095.63
A80: Cane Harvesters | B80: Cane Harvesters | E80: 0 | F80: =IFERROR(VLOOKUP(A80,'[10]Collateral Type'!$A$2:$C$31,3,FALSE),0) -> 0 | I80: 0 | J80: 0 | M80: 0 | N80: 0 | Q80: 0 | R80: 0 | U80: 0 | V80: 0 | Y80: 0 | Z80: 0 | AC80: 0 | AD80: 0 | AG80: 0 | AH80: 0 | AK80: 0 | AL80: 0 | AP80: 0 | AT80: 0 | AX80: 0 | BB80: 0
A81: Combines | B81: Combines | E81: 0.3615058946 | F81: =IFERROR(VLOOKUP(A81,'[10]Collateral Type'!$A$2:$C$31,3,FALSE),0) -> 12840096.56 | I81: 0.3608399723 | J81: 15151600.02 | M81: 0.3474730876 | N81: 20308987.42 | Q81: 0.403193347 | R81: 38683128.36 | U81: 0.3855057201 | V81: 41221864.31 | Y81: 0.3776417803 | Z81: 46217676.63 | AC81: 0.3593616903 | AD81: 52581539.05 | AG81: 0.3857031574 | AH81: 78766338.47 | AK81: 0.380550019 | AL81: 85549825.51 | AP81: 0.3696840055 | AQ81: 90517367.6 | AT81: 0.3614251628 | AU81: 100283719.6 | AX81: 0.3811649832 | AY81: 130809424.9 | BB81: 0.3726457121 | BC81: 137006386
A82: COMMERCIAL VEHICLE | B82: COMMERCIAL VEHICLE | E82: 0 | F82: =IFERROR(VLOOKUP(A82,'[10]Collateral Type'!$A$2:$C$31,3,FALSE),0) -> 0 | I82: 0 | J82: 0 | M82: 0 | N82: 0 | Q82: 0 | R82: 0 | U82: 0 | V82: 0 | Y82: 0 | Z82: 0 | AC82: 0 | AD82: 0 | AG82: 0 | AH82: 0 | AK82: 0 | AL82: 0 | AP82: 0 | AT82: 0 | AX82: 0 | BB82: 0
A83: Cotton Pickers | B83: Cotton Pickers | E83: 0.00184836602 | F83: =IFERROR(VLOOKUP(A83,'[10]Collateral Type'!$A$2:$C$31,3,FALSE),0) -> 65650.93 | I83: 0.001897110984 | J83: 79659.32 | M83: 0.00167538627 | N83: 97922.4 | Q83: 0.001256475462 | R83: 120548.62 | U83: 0.001292496489 | V83: 138205.77 | Y83: 0.00127001718 | Z83: 155431.01 | AC83: 0.001177154955 | AD83: 172240.45 | AG83: 0.0009237560718 | AH83: 188644.77 | AK83: 0.0009103608628 | AL83: 204654.34 | AP83: 0.0008996474933 | AQ83: 220279.27 | AT83: 0.0008488541518 | AU83: 235529.4 | AX83: 0.0007296689582 | AY83: 250410.14 | BB83: 0.0007105958852 | BC83: 261256.66
A84: CRAWLERS / DOZERS | B84: CRAWLERS / DOZERS | E84: 0.0007501708944 | F84: =IFERROR(VLOOKUP(A84,'[10]Collateral Type'!$A$2:$C$31,3,FALSE),0) -> 26644.84 | I84: 0.0009992637534 | J84: 41958.89 | M84: 0.0009715720713 | N84: 56786.11 | Q84: 0.0007415638385 | R84: 71147.03 | U84: 0.0007953980293 | V84: 85051.37 | Y84: 0.001110045489 | Z84: 135852.88 | AC84: 0.001081961613 | AD84: 158311.83 | AG84: 0.001747048719 | AH84: 356773.41 | AK84: 0.0017551899 | AL84: 394576.75 | AP84: 0.001761049141 | AQ84: 431194.02 | AT84: 0.001825777558 | AU84: 506593.85 | AX84: 0.001586342875 | AY84: 544406.25 | BB84: 0.001580351726 | BC84: 581029.84
A85: CULTIVATORS,SEEDERS, HARROWS | B85: CULTIVATORS,SEEDERS, HARROWS | E85: 0.02087897912 | F85: =IFERROR(VLOOKUP(A85,'[10]Collateral Type'!$A$2:$C$31,3,FALSE),0) -> 741587.1 | I85: 0.01879746007 | J85: 789301.68 | M85: 0.02024530811 | N85: 1183290.8 | Q85: 0.02198609507 | R85: 2109387.33 | U85: 0.02081373584 | V85: 2225598.61 | Y85: 0.01953116398 | Z85: 2390320.85 | AC85: 0.01922047042 | AD85: 2812325.14 | AG85: 0.01930957938 | AH85: 3943304.16 | AK85: 0.01897446704 | AL85: 4265568.95 | AP85: 0.0197639931 | AQ85: 4839226.48 | AT85: 0.02044876913 | AU85: 5673867.9 | AX85: 0.02169556052 | AY85: 7445552.24 | BB85: 0.0214602304 | BC85: 7890037.41
A86: Drill | B86: Drill | E86: 0 | F86: =IFERROR(VLOOKUP(A86,'[10]Collateral Type'!$A$2:$C$31,3,FALSE),0) -> 0 | I86: 0 | J86: 0 | M86: 0 | N86: 0 | Q86: 0 | R86: 0 | U86: 0 | V86: 0 | Y86: 0 | Z86: 0 | AC86: 0.0003491800575 | AD86: 51091.77 | AG86: 0.0004218535113 | AH86: 86148.78 | AK86: 0.0003832143393 | AL86: 86148.78 | AP86: 0.0005219803665 | AQ86: 127807.23 | AT86: 0.0005275140853 | AU86: 146367.99 | AX86: 0.0005081580091 | AY86: 174391.3 | BB86: 0.0005272742458 | BC86: 193856.89
A87: DUMP TRUCKS | B87: DUMP TRUCKS | E87: 0.001326209876 | F87: =IFERROR(VLOOKUP(A87,'[10]Collateral Type'!$A$2:$C$31,3,FALSE),0) -> 47104.8 | I87: 0.001583090711 | J87: 66473.67 | M87: 0.001460599554 | N87: 85368.62 | Q87: 0.00108191791 | R87: 103801.24 | U87: 0.001138909895 | V87: 121782.86 | Y87: 0.001138411882 | Z87: 139324.5 | AC87: 0.001069147853 | AD87: 156436.93 | AG87: 0.0008477865482 | AH87: 173130.66 | AK87: 0.0008425760698 | AL87: 189415.93 | AP87: 0.0008384814305 | AQ87: 205302.72 | AT87: 0.000795771854 | AU87: 220800.79 | AX87: 0.0006874451859 | AY87: 235919.65 | BB87: 0.0006817972085 | BC87: 250668.58
A88: EXCAVATORS / GRADERS | B88: EXCAVATORS / GRADERS | E88: 0.004296819993 | F88: =IFERROR(VLOOKUP(A88,'[10]Collateral Type'!$A$2:$C$31,3,FALSE),0) -> 152616 | I88: 0.008522510435 | J88: 357858.55 | M88: 0.0090369313 | N88: 528187.45 | Q88: 0.007822421943 | R88: 750497.88 | U88: 0.009829576443 | V88: 1051069.92 | Y88: 0.01068444089 | Z88: 1307614.94 | AC88: 0.01156511249 | AD88: 1692198.78 | AG88: 0.009520385845 | AH88: 1944204.81 | AK88: 0.01016005046 | AL88: 2284037.58 | AP88: 0.01056636652 | AQ88: 2587181.67 | AT88: 0.0117218438 | AU88: 3252430.15 | AX88: 0.01064294352 | AY88: 3652479.59 | BB88: 0.01293236814 | BC88: 4754695.85
A89: FEEDERS, MIXERS, WAGONS, BINS, FEED STORAGE | B89: FEEDERS, MIXERS, WAGONS, BINS, FEED STORAGE | E89: 0.001497478199 | F89: =IFERROR(VLOOKUP(A89,'[10]Collateral Type'!$A$2:$C$31,3,FALSE),0) -> 53187.97 | I89: 0.002518320825 | J89: 105743.8 | M89: 0.002145928837 | N89: 125424.51 | Q89: 0.001792275877 | R89: 171954.32 | U89: 0.001807280837 | V89: 193251.31 | Y89: 0.001914098003 | Z89: 234256.82 | AC89: 0.002368475988 | AD89: 346553.67 | AG89: 0.002087157712 | AH89: 426228.74 | AK89: 0.002040615941 | AL89: 458742.16 | AP89: 0.002077664683 | AQ89: 508717.54 | AT89: 0.002118940482 | AU89: 587937.02 | AX89: 0.001936488669 | AY89: 664570.41 | BB89: 0.002221406921 | BC89: 816719.27
A90: Front End Loader | B90: Front End Loader | E90: 0.0003618021763 | F90: =IFERROR(VLOOKUP(A90,'[10]Collateral Type'!$A$2:$C$31,3,FALSE),0) -> 12850.62 | I90: 0.0007271450798 | J90: 30532.68 | M90: 0.0006153839622 | N90: 35967.75 | Q90: 0.0004556566878 | R90: 43716.56 | U90: 0.0004572930065 | V90: 48898.03 | Y90: 0.0005319625593 | Z90: 65104.22 | AC90: 0.0005169274126 | AD90: 75636.44 | AG90: 0.0004467647668 | AH90: 91236.03 | AK90: 0.0004298820551 | AL90: 96639.95 | AP90: 0.0004608823043 | AQ90: 112847.33 | AT90: 0.000443982847 | AU90: 123190.79 | AX90: 0.0003985991257 | AY90: 136792.53 | BB90: 0.0003857074345 | BC90: 141808.64
A91: Fronts | B91: Fronts | E91: 0.004333542409 | F91: =IFERROR(VLOOKUP(A91,'[10]Collateral Type'!$A$2:$C$31,3,FALSE),0) -> 153920.32 | I91: 0.003665659332 | J91: 153920.32 | M91: 0.004499896642 | N91: 263008.41 | Q91: 0.006020585591 | R91: 577626.31 | U91: 0.005617297508 | V91: 600653.8 | Y91: 0.005702697153 | Z91: 697924.4 | AC91: 0.005829006928 | AD91: 852896.02 | AG91: 0.006495454134 | AH91: 1326468.63 | AK91: 0.006273584835 | AL91: 1410337.83 | AP91: 0.006060023176 | AQ91: 1483800.59 | AT91: 0.006187141222 | AU91: 1716730.32 | AX91: 0.006852737743 | AY91: 2351744.58 | BB91: 0.006894400552 | BC91: 2534785.38
A92: GUIDANCE SYSTEMS | B92: Guidance Systems | E92: 0.0003670265166 | F92: =IFERROR(VLOOKUP(A92,'[10]Collateral Type'!$A$2:$C$31,3,FALSE),0) -> 13036.18 | I92: 0.000488792698 | J92: 20524.31 | M92: 0.0004137551741 | N92: 24183.02 | Q92: 0.0003363319487 | R92: 32268.32 | U92: 0.0003345050746 | V92: 35768.4 | Y92: 0.000349218709 | Z92: 42739.12 | AC92: 0.0005111104069 | AD92: 74785.3 | AG92: 0.000728268394 | AH92: 148723.27 | AK92: 0.0006931777884 | AL92: 155830.34 | AP92: 0.0007370802686 | AQ92: 180474.58 | AT92: 0.001116110938 | AU92: 309684.46 | AX92: 0.001386073349 | AY92: 475677.11 | BB92: 0.001458010823 | BC92: 536050.16
A93: HARVESTERS - Other | B93: HARVESTERS - Other | E93: 0.009687244246 | F93: =IFERROR(VLOOKUP(A93,'[10]Collateral Type'!$A$2:$C$31,3,FALSE),0) -> 344075.03 | I93: 0.008460440844 | J93: 355252.26 | M93: 0.007891011261 | N93: 461211.11 | Q93: 0.009960920966 | R93: 955669.5 | U93: 0.009418385759 | V93: 1007101.58 | Y93: 0.008344201001 | Z93: 1021204.76 | AC93: 0.008073615634 | AD93: 1181325.52 | AG93: 0.008655554558 | AH93: 1767593.36 | AK93: 0.008357849707 | AL93: 1878892.52 | AP93: 0.007890905255 | AQ93: 1932093.25 | AT93: 0.007347010697 | AU93: 2038556.35 | AX93: 0.007503632074 | AY93: 2575120.59 | BB93: 0.007374727299 | BC93: 2711381.62
A94: Irrigation Equipment | B94: Irrigation Equipment | E94: 0.0002306319877 | F94: =IFERROR(VLOOKUP(A94,'[10]Collateral Type'!$A$2:$C$31,3,FALSE),0) -> 8191.67 | I94: 0.0004824240092 | J94: 20256.89 | M94: 0.0005485439846 | N94: 32061.11 | Q94: 0.001270957667 | R94: 121938.07 | U94: 0.001259833885 | V94: 134713.18 | Y94: 0.001496656536 | Z94: 183168.26 | AC94: 0.00133529551 | AD94: 195379.46 | AG94: 0.001181631014 | AH94: 241306.68 | AK94: 0.001125324243 | AL94: 252979.34 | AP94: 0.001210990556 | AQ94: 296511.82 | AT94: 0.001108850231 | AU94: 307669.85 | AX94: 0.001016756191 | AY94: 348933.66 | BB94: 0.001012908199 | BC94: 372404.37
A95: Other AG | B95: Other AG | E95: 0.0005414022471 | F95: =IFERROR(VLOOKUP(A95,'[10]Collateral Type'!$A$2:$C$31,3,FALSE),0) -> 19229.72 | I95: 0.0007238726188 | J95: 30395.27 | M95: 0.001548648081 | N95: 90514.85 | Q95: 0.001529046205 | R95: 146699.57 | U95: 0.001941970743 | V95: 207653.61 | Y95: 0.005110376527 | Z95: 625433.26 | AC95: 0.005194930555 | AD95: 760118.43 | AG95: 0.004726214039 | AH95: 965163.41 | AK95: 0.004832603516 | AL95: 1086396.97 | AP95: 0.005358615306 | AQ95: 1312060.42 | AT95: 0.00661013476 | AU95: 1834097.26 | AX95: 0.006545422802 | AY95: 2246279.25 | BB95: 0.006539013559 | BC95: 2404124.31
A96: MATERIALS HANDLING EQUIPMENT | B96: MATERIALS HANDLING EQUIPMENT | E96: 4.428779914e-05 | F96: =IFERROR(VLOOKUP(A96,'[10]Collateral Type'!$A$2:$C$31,3,FALSE),0) -> 1573.03 | I96: 0.0001584925204 | J96: 6655.07 | M96: 0.0009641178802 | N96: 56350.43 | Q96: 0.0007542603792 | R96: 72365.16 | U96: 0.0008967246818 | V96: 95886.16 | Y96: 0.001002667677 | Z96: 122711.45 | AC96: 0.0009453582089 | AD96: 138324.12 | AG96: 0.0007713278341 | AH96: 157516.65 | AK96: 0.0008588507883 | AL96: 193074.58 | AP96: 0.0009403447925 | AQ96: 230244.03 | AT96: 0.001407221549 | AU96: 390458.18 | AX96: 0.001222482015 | AY96: 419535.31 | BB96: 0.001243940927 | BC96: 457345.53
A97: Other CE | B97: Other CE | E97: 0.0006474687993 | F97: =IFERROR(VLOOKUP(A97,'[10]Collateral Type'!$A$2:$C$31,3,FALSE),0) -> 22997.03 | I97: 0.001042466622 | J97: 43772.97 | M97: 0.003085654293 | N97: 180349.26 | Q97: 0.00188910606 | R97: 181244.39 | U97: 0.002210203535 | V97: 236335.56 | Y97: 0.002770816463 | Z97: 339106.28 | AC97: 0.002886386935 | AD97: 422334.02 | AG97: 0.002462453998 | AH97: 502869.84 | AK97: 0.002694428808 | AL97: 605723.04 | AP97: 0.002898831844 | AQ97: 709780.85 | AT97: 0.002882650053 | AU97: 799841.57 | AX97: 0.002568386791 | AY97: 881427.24 | BB97: 0.002708992984 | BC97: 995984.46
A98: Over 100 HP Tractor | B98: Over 100 HP Tractor | E98: 0 | F98: =IFERROR(VLOOKUP(A98,'[10]Collateral Type'!$A$2:$C$31,3,FALSE),0) -> 0 | I98: 0 | J98: 0 | M98: 0 | N98: 0 | Q98: 0 | R98: 0 | U98: 0 | V98: 0 | Y98: 0 | Z98: 0 | AC98: 0 | AD98: 0 | AG98: 0 | AH98: 0 | AK98: 0 | AL98: 0 | AP98: 0 | AT98: 0 | AX98: 0 | BB98: 0
A99: OVER 140 HP TRACTOR | B99: OVER 140 HP TRACTOR | E99: 0.2531415235 | F99: =IFERROR(VLOOKUP(A99,'[10]Collateral Type'!$A$2:$C$31,3,FALSE),0) -> 8991171.8 | I99: 0.2402033402 | J99: 10086091.38 | M99: 0.2338024332 | N99: 13665204.14 | Q99: 0.2181854013 | R99: 20933117.94 | U99: 0.2115239558 | V99: 22618112.65 | Y99: 0.2061189636 | Z99: 25225862.45 | AC99: 0.2085456441 | AD99: 30514245.74 | AG99: 0.2006968014 | AH99: 40985280.74 | AK99: 0.1978246689 | AL99: 44472119.47 | AP99: 0.1972873771 | AQ99: 48305941.76 | AT99: 0.1963414265 | AU99: 54478355.64 | AX99: 0.1923912312 | AY99: 66025441.54 | BB99: 0.1887911566 | BC99: 69410684.82
A100: Rollers | B100: Rollers | E100: 0 | F100: =IFERROR(VLOOKUP(A100,'[10]Collateral Type'!$A$2:$C$31,3,FALSE),0) -> 0 | I100: 0 | J100: 0 | M100: 0 | N100: 0 | Q100: 0 | R100: 0 | U100: 1.116157856e-05 | V100: 1193.5 | Y100: 2.401978024e-05 | Z100: 2939.66 | AC100: 3.167511771e-05 | AD100: 4634.68 | AG100: 3.075216089e-05 | AH100: 6280.05 | AK100: 3.504020977e-05 | AL100: 7877.24 | AP100: 3.850363538e-05 | AQ100: 9427.64 | AT100: 3.940148604e-05 | AU100: 10932.63 | AX100: 3.611345021e-05 | AY100: 12393.53 | BB100: 3.756651278e-05 | BC100: 13811.65
A101: SCRAPERS | B101: SCRAPERS | E101: 0 | F101: =IFERROR(VLOOKUP(A101,'[10]Collateral Type'!$A$2:$C$31,3,FALSE),0) -> 0 | I101: 4.717097417e-06 | J101: 198.07 | M101: 0.001534014304 | N101: 89659.54 | Q101: 0.0009937672516 | R101: 95343.9 | U101: 0.001047990491 | V101: 112060.91 | Y101: 0.001447840981 | Z101: 177193.97 | AC101: 0.001283086049 | AD101: 187740.21 | AG101: 0.001025963395 | AH101: 209517.03 | AK101: 0.001066922574 | AL101: 239850.31 | AP101: 0.001278191808 | AQ101: 312966.09 | AT101: 0.00121363398 | AU101: 336743.93 | AX101: 0.001074918563 | AY101: 368894.01 | BB101: 0.001076433444 | BC101: 395759.97
A102: SKIDSTEER / UNILOADER | B102: SKIDSTEER / UNILOADER | E102: 0.0007911620886 | F102: =IFERROR(VLOOKUP(A102,'[10]Collateral Type'!$A$2:$C$31,3,FALSE),0) -> 28100.78 | I102: 0.00114807178 | J102: 48207.31 | M102: 0.001207962048 | N102: 70602.55 | Q102: 0.001012048319 | R102: 97097.82 | U102: 0.0013052032 | V102: 139564.49 | Y102: 0.001509921319 | Z102: 184791.67 | AC102: 0.001665412186 | AD102: 243681.89 | AG102: 0.001404895996 | AH102: 286900.72 | AK102: 0.001655736653 | AL102: 372219.09 | AP102: 0.001798877793 | AQ102: 440456.39 | AT102: 0.001759818363 | AU102: 488292.32 | AX102: 0.001691446441 | AY102: 580476.03 | BB102: 0.001835079536 | BC102: 674682.7
A103: SPRAYING EQUIPMENT | B103: SPRAYING EQUIPMENT | E103: 0.02936149517 | F103: =IFERROR(VLOOKUP(A103,'[10]Collateral Type'!$A$2:$C$31,3,FALSE),0) -> 1042872.16 | I103: 0.030401921 | J103: 1276570.73 | M103: 0.03635330607 | N103: 2124765.52 | Q103: 0.03473565323 | R103: 3332603.93 | U103: 0.03715517548 | V103: 3972977.63 | Y103: 0.03478183058 | Z103: 4256773.17 | AC103: 0.03526074551 | AD103: 5159326.43 | AG103: 0.03461956838 | AH103: 7069832.3 | AK103: 0.03418285378 | AL103: 7684501.46 | AP103: 0.0326626893 | AQ103: 7997480.58 | AT103: 0.03284558849 | AU103: 9113581.8 | AX103: 0.0335186996 | AY103: 11503055.14 | BB103: 0.03379582332 | BC103: 12425323.74
A104: Trenchers | B104: Trenchers | E104: 0 | F104: =IFERROR(VLOOKUP(A104,'[10]Collateral Type'!$A$2:$C$31,3,FALSE),0) -> 0 | I104: 0 | J104: 0 | M104: 0 | N104: 0 | Q104: 0 | R104: 0 | U104: 0 | V104: 0 | Y104: 0 | Z104: 0 | AC104: 0 | AD104: 0 | AG104: 0 | AH104: 0 | AK104: 0 | AL104: 0 | AP104: 0 | AT104: 0 | AX104: 9.394110335e-05 | AY104: 32239.01 | BB104: 0.0001051443219 | BC104: 38657.21
A105: TRUCK - on Farm | B105: TRUCK - on Farm | E105: 0 | F105: =IFERROR(VLOOKUP(A105,'[10]Collateral Type'!$A$2:$C$31,3,FALSE),0) -> 0 | I105: 0 | J105: 0 | M105: 0.0002472980277 | N105: 14453.99 | Q105: 0.0001506536015 | R105: 14453.99 | U105: 0.0001351733095 | V105: 14453.99 | Y105: 0.0001181026593 | Z105: 14453.99 | AC105: 0.0001893410937 | AD105: 27704.25 | AG105: 0.0001356622246 | AH105: 27704.25 | AK105: 0.000123236404 | AL105: 27704.25 | AP105: 0.000113147547 | AQ105: 27704.25 | AT105: 0.0001431483927 | AU105: 39719.02 | AX105: 0.0001157370702 | AY105: =VLOOKUP(A105,[1]Collateral!$A$2:$C$33,3,0) -> 39719.02
A106: Under 40 HP Tractors | B106: Under 40 HP Tractors | E106: 0.001868809813 | F106: =IFERROR(VLOOKUP(A106,'[10]Collateral Type'!$A$2:$C$31,3,FALSE),0) -> 66377.06 | I106: 0.001937914698 | J106: 81372.66 | M106: 0.001769089258 | N106: 103399.12 | Q106: 0.001715470004 | R106: 164585.42 | U106: 0.002485794273 | V106: 265804.29 | Y106: 0.002727555267 | Z106: 333811.76 | AC106: 0.002847502103 | AD106: 416644.42 | AG106: 0.002734101734 | AH106: 558344.36 | AK106: 0.003189506798 | AL106: 717019.41 | AP106: 0.003448967742 | AQ106: 844481.98 | AT106: 0.003543900977 | AU106: 983317.18 | AX106: 0.003354804795 | AY106: 1151312.7 | BB106: 0.003667684004 | BC106: 1348455.42
A107: Wheel Loaders | B107: Wheel Loaders | E107: 0 | F107: =IFERROR(VLOOKUP(A107,'[10]Collateral Type'!$A$2:$C$31,3,FALSE),0) -> 0 | I107: 0 | J107: 0 | M107: 0 | N107: 0 | Q107: 0.0002623326703 | R107: 25168.69 | U107: 0.0002958767544 | V107: 31637.9 | Y107: 0.0003099736927 | Z107: 37936.12 | AC107: 0.0003011761948 | AD107: 44067.88 | AG107: 0.0002450243626 | AH107: 50037.63 | AK107: 0.0003517942775 | AL107: 79085.37 | AP107: 0.0003461043348 | AQ107: 84743.87 | AT107: 0.0003252738612 | AU107: 90252.91 | AX107: 0.0004088537647 | AY107: 140311.75 | BB107: 0.0004807681071 | BC107: 176758.51
B108: Total | E108: =SUM(E72:E107) -> 1 | F108: =SUM(F72:F107) -> 35518360.15 | G108: =E13-F108 -> -1.788139343e-07 | I108: 1 | J108: 41989804.85 | K108: -1.490116119e-07 | M108: 1 | N108: 58447655.79 | O108: -1.639127731e-07 | Q108: 1 | R108: 95941881.61 | S108: -1.192092896e-07 | U108: 1 | V108: 106929319.5 | W108: -1.788139343e-07 | Y108: 1 | Z108: 122384966.5 | AA108: -1.639127731e-07 | AC108: 1 | AD108: 146319266.8 | AE108: 0 | AG108: =SUM(AG72:AG107) -> 1 | AH108: =SUM(AH72:AH107) -> 204214917.5 | AI108: =AG13-AH108 -> -2.980232239e-07 | AK108: 1 | AL108: 224805731.8 | AM108: -3.278255463e-07 | AP108: 1 | AQ108: 244850646.1 | AR108: -2.682209015e-07 | AT108: 1 | AU108: 277467453.6 | AV108: 0 | AX108: =SUM(AX72:AX107) -> 1 | AY108: =SUM(AY72:AY107) -> 343183216.4 | BB108: 1 | BC108: 367658560.1
A109: $ 0 - $25,000
A110: $ 25,001 to $50,000 | B110: Contract Balance Distribution
A111: $0 - $25,000 | B111: $ 0 - $25,000 | E111: =IFERROR(F111/F$122,0) -> 0.160484223 | F111: =IFERROR(VLOOKUP(A111,'[10]Client Balance'!$A$2:$C$11,3,FALSE),0) -> 5700136.43 | I111: 0.1664108417 | J111: 6987558.77 | M111: 0.134001369 | N111: 7832065.89 | Q111: 0.1011998065 | R111: 9709299.85 | U111: 0.1108742328 | V111: 11855706.26 | Y111: 0.1170574959 | Z111: 14326077.72 | AC111: 0.1130725029 | AD111: 16544685.72 | AG111: =IFERROR(AH111/AH$122,0) -> 0.08952733514 | AH111: 18282817.36 | AK111: 0.08653206976 | AL111: 19452905.27 | AP111: 0.07908916336 | AQ111: 19365032.75 | AT111: 0.0715605686 | AU111: 19855728.75 | AX111: 0.05478729049 | AY111: 18802078.57 | BB111: 0.0512030052 | BC111: 18820816.69
A112: $25,001 - $50,000 | B112: $ 25,001 to $50,000 | E112: =IFERROR(F112/F$122,0) -> 0.3015647379 | F112: =IFERROR(VLOOKUP(A112,'[10]Client Balance'!$A$2:$C$11,3,FALSE),0) -> 10711084.97 | I112: 0.2807771458 | J112: 11789777.56 | M112: 0.2296675902 | N112: 13423532.26 | Q112: 0.177087757 | R112: 16990132.62 | U112: 0.1744212193 | V112: 18650742.29 | Y112: 0.1758175357 | Z112: 21517423.22 | AC112: 0.1631451757 | AD112: 23871282.49 | AG112: =IFERROR(AH112/AH$122,0) -> 0.1244595951 | AH112: 25416505.94 | AK112: 0.128224853 | AL112: 28825681.92 | AP112: 0.1342250787 | AQ112: 32865097.24 | AT112: 0.1274260473 | AU112: 35356580.87 | AX112: 0.106498401 | AY112: 36548463.8 | BB112: 0.1089189301 | BC112: 40035603.57
A113: $50,001 - $75,000 | B113: $ 50,001 to $75,000 | E113: 0.3161635713 | F113: =IFERROR(VLOOKUP(A113,'[10]Client Balance'!$A$2:$C$11,3,FALSE),0) -> 11229611.59 | I113: 0.3033284605 | J113: 12736702.86 | M113: 0.2748684816 | N113: 16065418.4 | Q113: 0.1936890274 | R113: 18582889.74 | U113: 0.1953727722 | V113: 20891077.58 | Y113: 0.1801487428 | Z113: 22047497.85 | AC113: 0.1581123084 | AD113: 23134877.04 | AG113: 0.1258079573 | AH113: 25691861.63 | AK113: 0.1230463282 | AL113: 27661519.86 | AP113: 0.1250751604 | AQ113: 30624733.84 | AT113: 0.1150435735 | AU113: 31920847.4 | AX113: 0.09945748495 | AY113: 34132139.58 | BB113: 0.1003596521 | BC113: 36889448.36
A114: $75,001 - $100,000 | B114: $ 75,001 to $100,000 | E114: 0.1156425891 | F114: =IFERROR(VLOOKUP(A114,'[10]Client Balance'!$A$2:$C$11,3,FALSE),0) -> 4107435.13 | I114: 0.1196707655 | J114: 5024952.09 | M114: 0.1499720793 | N114: 8765516.47 | Q114: 0.1766993363 | R114: 16952866.8 | U114: 0.1678270659 | V114: 17945633.95 | Y114: 0.16476975 | Z114: 20165340.33 | AC114: 0.1562028546 | AD114: 22855487.16 | AG114: 0.1223972325 | AH114: 24995340.74 | AK114: 0.1224125404 | AL114: 27519040.72 | AP114: 0.1221386605 | AQ114: 29905729.94 | AT114: 0.113937981 | AU114: 31614081.46 | AX114: 0.09157359485 | AY114: 31426520.82 | BB114: 0.0869530449 | BC114: 31961548.2
A115: $100,001 - $125,000 | B115: $100,001 to $125,000 | E115: 0.04109707244 | F115: =IFERROR(VLOOKUP(A115,'[10]Client Balance'!$A$2:$C$11,3,FALSE),0) -> 1459700.62 | I115: 0.04202206408 | J115: 1764498.27 | M115: 0.07208334882 | N115: 4213102.76 | Q115: 0.1357306359 | R115: 13022252.6 | U115: 0.1276487757 | V115: 13649396.72 | Y115: 0.1240208691 | Z115: 15178289.91 | AC115: 0.1314022283 | AD115: 19226677.7 | AG115: 0.1218698669 | AH115: 24887644.81 | AK115: 0.121609628 | AL115: 27338541.43 | AP115: 0.1166046065 | AQ115: 28550713.25 | AT115: 0.109694154 | AU115: 30436557.58 | AX115: 0.09080424831 | AY115: 31162494 | BB115: 0.09161931668 | BC115: 33676741.39
A116: $125,001 - $150,000 | B116: $125,001 to $150,000 | E116: 0.02325241893 | F116: =IFERROR(VLOOKUP(A116,'[10]Client Balance'!$A$2:$C$11,3,FALSE),0) -> 825887.79 | I116: 0.03554621331 | J116: 1492578.56 | M116: 0.06724240719 | N116: 3930161.07 | Q116: 0.1172887122 | R116: 11252899.74 | U116: 0.1144653803 | V116: 12239705.22 | Y116: 0.1103191926 | Z116: 13501410.69 | AC116: 0.1046494046 | AD116: 15312224.15 | AG116: 0.09979854209 | AH116: 20380351.04 | AK116: 0.09722971239 | AL116: 21857796.65 | AP116: 0.09970399677 | AQ116: 24412588.03 | AT116: 0.09403039488 | AU116: 26090374.23 | AX116: 0.08965405649 | AY116: 30767767.47 | BB116: 0.09178465717 | BC116: 33737516.01
A117: $150,001 - $200,000 | B117: $150,000 to $200,000 | E117: 0.02334298308 | F117: =IFERROR(VLOOKUP(A117,'[10]Client Balance'!$A$2:$C$11,3,FALSE),0) -> 829104.48 | I117: 0.02438580397 | J117: 1023955.15 | M117: 0.04503499506 | N117: 2632189.89 | Q117: 0.0583709142 | R117: 5600215.34 | U117: 0.06464918661 | V117: 6912893.53 | Y117: 0.07229572751 | Z117: 8847910.19 | AC117: 0.1022286712 | AD117: 14958024.21 | AG117: 0.1819641858 | AH117: 37159801.2 | AK117: 0.1743681545 | AL117: 39198960.58 | AP117: 0.1703554747 | AQ117: 41711648.05 | AT117: 0.1716119163 | AU117: 47616721.43 | AX117: 0.1672794451 | AY117: 57407498.02 | BB117: 0.1686315119 | BC117: 61984306.61
A118: $200,001 - $300,000 | B118: $200,001 to $300,000 | E118: 0.005949611106 | F118: =IFERROR(VLOOKUP(A118,'[10]Client Balance'!$A$2:$C$11,3,FALSE),0) -> 211320.43 | I118: 0.01728283526 | J118: 725702.88 | M118: 0.01287100432 | N118: 752280.03 | Q118: 0.02326337646 | R118: 2231932.11 | U118: 0.02098393089 | V118: 2243797.45 | Y118: 0.03052045375 | Z118: 3735244.71 | AC118: 0.04329983582 | AD118: 6335600.23 | AG118: 0.1049137446 | AH118: 21424951.7 | AK118: 0.1080815018 | AL118: 24297341.11 | AP118: 0.1120625846 | AQ118: 27438596.24 | AT118: 0.1522000974 | AU118: 42230573.48 | AX118: 0.2321345207 | AY118: 79664671.45 | BB118: 0.2317617934 | BC118: 85189262.1
A119: $300,001 - $400,000 | B119: $300,001 to $400,000 | E119: 0 | F119: =IFERROR(VLOOKUP(A119,'[10]Client Balance'!$A$2:$C$11,3,FALSE),0) -> 0 | I119: 0 | J119: 0 | M119: 0.00666083703 | N119: 389310.31 | Q119: 0.01148699673 | R119: 1102084.08 | U119: 0.01910661902 | V119: 2043057.77 | Y119: 0.01408349374 | Z119: 1723607.91 | AC119: 0.01141320023 | AD119: 1669971.09 | AG119: 0.006782217367 | AH119: 1385029.96 | AK119: 0.007771640811 | AL119: 1747109.4 | AP119: 0.007076368829 | AQ119: 1732653.48 | AT119: 0.01088947158 | AU119: 3021473.95 | AX119: 0.02983316922 | AY119: 10238242.97 | BB119: 0.02867134295 | BC119: 10538797.24
A120: $400,001 - $500,000 | B120: $400,001 to $500,000 | E120: 0.01250279315 | F120: =IFERROR(VLOOKUP(A120,'[10]Client Balance'!$A$2:$C$11,3,FALSE),0) -> 444078.71 | I120: 0.01057586982 | J120: 444078.71 | M120: 0.007597887443 | N120: 444078.71 | Q120: 0.005183437323 | R120: 497308.73 | U120: 0.004650817309 | V120: 497308.73 | Y120: 0.01096673888 | Z120: 1342163.97 | AC120: 0.009493392226 | AD120: 1389066.19 | AG120: 0.008829354447 | AH120: 1803085.89 | AK120: 0.008332075454 | AL120: 1873098.32 | AP120: 0.008985814638 | AQ120: 2200182.52 | AT120: 0.007815783371 | AU120: 2168625.51 | AX120: 0.0063606992 | AY120: 2182885.21 | BB120: 0.004682074949 | BC120: 1721002
A121: $500,001+ | B121: $500,000+ | E121: 0 | F121: =IFERROR(VLOOKUP(A121,'[10]Client Balance'!$A$2:$C$11,3,FALSE),0) -> 0 | I121: 0 | J121: 0 | M121: 0 | N121: 0 | Q121: 0 | R121: 0 | U121: 0 | V121: 0 | Y121: 0 | Z121: 0 | AC121: 0.006980426107 | AD121: 1021370.83 | AG121: 0.01364996869 | AH121: 2787527.23 | AK121: 0.02239149567 | AL121: 5033736.57 | AP121: 0.02468309096 | AQ121: 6043670.77 | AT121: 0.02579001204 | AU121: 7155888.97 | AX121: 0.03161708965 | AY121: 10850454.52 | BB121: 0.03541467057 | BC121: 13017459.04
A122: $200,001 to $300,000 | B122: Total | E122: =SUM(E111:E121) -> 1 | F122: =SUM(F111:F121) -> 35518360.15 | I122: 1 | J122: 41989804.85 | M122: 1 | N122: 58447655.79 | Q122: 1 | R122: 95941881.61 | U122: 1 | V122: 106929319.5 | Y122: 1 | Z122: 122384966.5 | AC122: 1 | AD122: 146319266.8 | AG122: =SUM(AG111:AG121) -> 1 | AH122: =SUM(AH111:AH121) -> 204214917.5 | AK122: 1 | AL122: 224805731.8 | AP122: 1 | AQ122: 244850646.1 | AT122: 1 | AU122: 277467453.6 | AX122: 1 | AY122: 343183216.4 | BB122: 1 | BC122: 367572501.2
A123: 0
A124: 0 to 5 | B124: Residual / Balloon Payment Distribution
A125: 0 | B125: 0 | E125: =IFERROR(F125/F$135,0) -> 0 | F125: =IFERROR(VLOOKUP(A126,'[10]Residual payment'!$A$2:$C$10,3,FALSE),0) -> 0 | I125: 0.8473198939 | J125: 35578796.99 | M125: 0.8569177571 | N125: 50084834.11 | Q125: 0.8919336269 | R125: 85573790.44 | U125: 0.8855266023 | V125: 94688756.98 | Y125: 0.8781595162 | Z125: 107473523 | AC125: 0.8846836857 | AD125: 129446268.2 | AG125: =IFERROR(AH125/AH$135,0) -> 0.9000947683 | AH125: 183812778.8 | AK125: 0.8967708361 | AL125: 201599224.1 | AP125: 0.8960141077 | AQ125: 219389633.2 | AT125: 0.8945439341 | AU125: 248206827.6 | AX125: 0.8997742796 | AY125: 308787431.3 | BB125: 0.8965867149 | BC125: 329560621.3
A126: 0 to 5 | B126: 0 to 5 | E126: =IFERROR(F126/F$135,0) -> 0.003699603232 | F126: =IFERROR(VLOOKUP(A127,'[10]Residual payment'!$A$2:$C$10,3,FALSE),0) -> 131403.84 | I126: 0 | J126: 0 | M126: 0 | N126: 0 | Q126: 0 | R126: 0 | U126: 0 | V126: 0 | Y126: 0 | Z126: 0 | AC126: 0 | AD126: 0 | AG126: =IFERROR(AH126/AH$135,0) -> 0 | AH126: 0 | AK126: 0 | AL126: 0 | AP126: 0 | AT126: 0 | AX126: 0 | BB126: 0
A127: 6 to 10 | B127: 06 to 10 | E127: 0.01092261885 | F127: =IFERROR(VLOOKUP(A128,'[10]Residual payment'!$A$2:$C$10,3,FALSE),0) -> 387953.51 | I127: 0.003970542864 | J127: 166722.32 | M127: 0.003461466799 | N127: 202314.62 | Q127: 0.002446982132 | R127: 234768.07 | U127: 0.002633157784 | V127: 281561.77 | Y127: 0.002681761407 | Z127: 328207.28 | AC127: 0.00251391842 | AD127: 367834.7 | AG127: 0.001949862649 | AH127: 398191.04 | AK127: 0.001949241002 | AL127: 438200.55 | AP127: 0.001919291362 | AQ127: 469939.73 | AT127: 0.001835369927 | AU127: 509255.42 | AX127: 0.001571913556 | AY127: 539454.35 | BB127: 0.001562914767 | BC127: 574484.49
A128: 11 to 15 | B128: 11 to 15 | E128: 0.02743675119 | F128: =IFERROR(VLOOKUP(A129,'[10]Residual payment'!$A$2:$C$10,3,FALSE),0) -> 974508.41 | I128: 0.009659160395 | J128: 405586.26 | M128: 0.008148980546 | N128: 476288.81 | Q128: 0.006122828739 | R128: 587435.71 | U128: 0.00760694077 | V128: 813405 | Y128: 0.007703505561 | Z128: 942793.27 | AC128: 0.007309541958 | AD128: 1069526.82 | AG128: 0.007523233703 | AH128: 1536356.55 | AK128: 0.006980147914 | AL128: 1569177.26 | AP128: 0.006584235842 | AQ128: 1612154.4 | AT128: 0.007086374111 | AU128: 1966238.18 | AX128: 0.006486545564 | AY128: 2226073.57 | BB128: 0.006292321004 | BC128: 2312884.17
A129: 16 to 20 | B129: 16 to 20 | E129: 0.02705162614 | F129: =IFERROR(VLOOKUP(A130,'[10]Residual payment'!$A$2:$C$10,3,FALSE),0) -> 960829.4 | I129: 0.0297197447 | J129: 1247926.28 | M129: 0.02252423955 | N129: 1316489 | Q129: 0.0171236157 | R129: 1642871.91 | U129: 0.01766231338 | V129: 1888619.15 | Y129: 0.01698711868 | Z129: 2078967.95 | AC129: 0.01637481667 | AD129: 2395951.17 | AG129: 0.01393659442 | AH129: 2846060.48 | AK129: 0.01386462362 | AL129: 3116846.86 | AP129: 0.01346295631 | AQ129: 3296413.55 | AT129: 0.01232713241 | AU129: 3420378.04 | AX129: 0.01143719804 | AY129: 3925054.41 | BB129: 0.01098168627 | BC129: 4036565.89
A130: 21 to 25 | B130: 21 to 25 | E130: 0.04237003014 | F130: =IFERROR(VLOOKUP(A131,'[10]Residual payment'!$A$2:$C$10,3,FALSE),0) -> 1504913.99 | I130: 0.03382629653 | J130: 1420359.59 | M130: 0.03444902319 | N130: 2013464.65 | Q130: 0.02287413956 | R130: 2194587.99 | U130: 0.02296535049 | V130: 2455669.3 | Y130: 0.02337510563 | Z130: 2860761.52 | AC130: 0.02214257336 | AD130: 3239885.1 | AG130: 0.01811758002 | AH130: 3699880.11 | AK130: 0.01893588529 | AL130: 4256895.55 | AP130: 0.01816898583 | AQ130: 4448687.92 | AT130: 0.01688417956 | AU130: 4684810.31 | AX130: 0.01549990488 | AY130: 5319307.21 | BB130: 0.01546736282 | BC130: 5685377.24
A131: 26 to 30 | B131: 26 to 30 | E131: 0.01248875224 | F131: =IFERROR(VLOOKUP(A132,'[10]Residual payment'!$A$2:$C$10,3,FALSE),0) -> 443580 | I131: 0.04913306807 | J131: 2063087.94 | M131: 0.05166476053 | N131: 3019684.14 | Q131: 0.04164570908 | R131: 3995567.69 | U131: 0.04580118664 | V131: 4897489.72 | Y131: 0.05458855806 | Z131: 6680818.85 | AC131: 0.05049814362 | AD131: 7388851.35 | AG131: 0.04061992543 | AH131: 8295194.72 | AK131: 0.04336032102 | AL131: 9747648.7 | AP131: 0.04242045228 | AQ131: 10386675.15 | AT131: 0.04111404315 | AU131: 11407808.86 | AX131: 0.03934839215 | AY131: 13503707.78 | BB131: 0.03977652774 | BC131: 14620757.79
A132: 31 to 35 | B132: 31 to 35 | E132: 0.01260350444 | F132: =IFERROR(VLOOKUP(A133,'[10]Residual payment'!$A$2:$C$10,3,FALSE),0) -> 447655.81 | I132: 0.01444906144 | J132: 606713.27 | M132: 0.0110012662 | N132: 642998.22 | Q132: 0.008628772816 | R132: 827860.7 | U132: 0.008180363665 | V132: 874720.72 | Y132: 0.007934814772 | Z132: 971102.04 | AC132: 0.006995836518 | AD132: 1023625.67 | AG132: 0.008527939297 | AH132: 1741532.42 | AK132: 0.008239349659 | AL132: 1852253.03 | AP132: 0.009414344404 | AQ132: 2305108.31 | AT132: 0.009807643867 | AU132: 2721301.97 | AX132: 0.008691034169 | AY132: 2982617.06 | BB132: 0.009126479862 | BC132: 3354643.03
A133: 36 to 40 | B133: 36 to 40 | E133: 0.001099186163 | F133: =IFERROR(VLOOKUP(A134,'[10]Residual payment'!$A$2:$C$10,3,FALSE),0) -> 39041.29 | I133: 0.01079687133 | J133: 453358.52 | M133: 0.01102402742 | N133: 644328.56 | Q133: 0.008731801023 | R133: 837745.42 | U133: 0.008398601564 | V133: 898056.75 | Y133: 0.007398618032 | Z133: 905479.62 | AC133: 0.007947979206 | AD133: 1162942.49 | AG133: 0.006287850299 | AH133: 1284072.83 | AK133: 0.007181379171 | AL133: 1614415.2 | AP133: 0.009073392026 | AQ133: 2221625.9 | AT133: 0.009881630166 | AU133: 2741830.76 | AX133: 0.008996313812 | AY133: 3087383.91 | BB133: 0.008723050771 | BC133: 3206353.59
A134: 41+ % | B134: 41+% | E134: 0.8623279276 | F134: =IFERROR(VLOOKUP(A135,'[10]Residual payment'!$A$2:$C$10,3,FALSE),0) -> 30628473.9 | I134: 0.001125360791 | J134: 47253.68 | M134: 0.0008084786184 | N134: 47253.68 | Q134: 0.0004925240073 | R134: 47253.68 | U134: 0.001225483437 | V134: 131040.11 | Y134: 0.001171001669 | Z134: 143313 | AC134: 0.00153350454 | AD134: 224381.26 | AG134: 0.002942245882 | AH134: 600850.5 | AK134: 0.002718216235 | AL134: 611070.59 | AP134: 0.002942234221 | AQ134: 720407.95 | AT134: 0.006519692693 | AU134: 1809002.53 | AX134: 0.008194418187 | AY134: 2812186.79 | BB134: 0.01148294189 | BC134: 4220813.67
E135: =SUM(E125:E134) -> 1 | F135: =SUM(F125:F134) -> 35518360.15 | I135: 1 | J135: 41989804.85 | M135: 1 | N135: 58447655.79 | Q135: 1 | R135: 95941881.61 | U135: 1 | V135: 106929319.5 | Y135: 1 | Z135: 122384966.5 | AC135: 1 | AD135: 146319266.8 | AG135: =SUM(AG125:AG134) -> 1 | AH135: =SUM(AH125:AH134) -> 204214917.5 | AK135: 1 | AL135: 224805731.8 | AP135: 1 | AQ135: 244850646.1 | AT135: 1 | AU135: 277467453.6 | AX135: 1 | AY135: 343183216.4 | BB135: 1 | BC135: 367572501.2
A136: 2004 Q1
A137: 2004 Q2 | B137: Quarter of Maturity Distribution
A138: =RIGHT(B138,2)&LEFT(B138,4) -> Q12013 | B138: 2013Q1 | E138: =F138/F$167 -> 0 | F138: =IFERROR(VLOOKUP(A138,'[10]Qtr Maturity'!$A$2:$C$16,3,FALSE),0) -> 0 | I138: 0 | J138: 0 | M138: 0 | N138: 0 | Q138: 0 | R138: 0 | U138: 0 | V138: 0 | Y138: 0 | Z138: 0 | AC138: 0 | AD138: 0 | AG138: =AH138/AH$167 -> 0 | AH138: 0 | AK138: 0 | AL138: 0 | AP138: 0 | AQ138: 0 | AT138: 0 | AU138: 0 | AX138: 0 | AY138: 0 | BB138: 0 | BC138: 0
A139: Q22013 | B139: 2013Q2 | E139: 0 | F139: =IFERROR(VLOOKUP(A139,'[10]Qtr Maturity'!$A$2:$C$16,3,FALSE),0) -> 0 | I139: 0 | J139: 0 | M139: 0 | N139: 0 | Q139: 0 | R139: 0 | U139: 0 | V139: 0 | Y139: 0 | Z139: 0 | AC139: 0 | AD139: 0 | AG139: 0 | AH139: 0 | AK139: 0 | AL139: 0 | AP139: 0 | AQ139: 0 | AT139: 0 | AU139: 0 | AX139: 0 | AY139: 0 | BB139: 0 | BC139: 0
A140: =RIGHT(B140,2)&LEFT(B140,4) -> Q32013 | B140: 2013Q3 | E140: 0 | F140: =IFERROR(VLOOKUP(A140,'[10]Qtr Maturity'!$A$2:$C$16,3,FALSE),0) -> 0 | I140: 0 | J140: 0 | M140: 0 | N140: 0 | Q140: 0 | R140: 0 | U140: 0 | V140: 0 | Y140: 0 | Z140: 0 | AC140: 0 | AD140: 0 | AG140: 0 | AH140: 0 | AK140: 0 | AL140: 0 | AP140: 0 | AQ140: 0 | AT140: 0 | AU140: 0 | AX140: 0 | AY140: 0 | BB140: 0.001938438206 | BC140: 712516.58
A141: =RIGHT(B141,2)&LEFT(B141,4) -> Q42013 | B141: 2013Q4 | E141: 0 | F141: =IFERROR(VLOOKUP(A141,'[10]Qtr Maturity'!$A$2:$C$16,3,FALSE),0) -> 0 | I141: 0 | J141: 0 | M141: 0 | N141: 0 | Q141: 0 | R141: 0 | U141: 0 | V141: 0 | Y141: 0 | Z141: 0 | AC141: 0 | AD141: 0 | AG141: 0 | AH141: 0 | AK141: 0 | AL141: 0 | AP141: 0 | AQ141: 0 | AT141: 0.0001179397784 | AU141: 32724.45 | AX141: 0.0009928183947 | AY141: 340718.61 | BB141: 0.007727535767 | BC141: 2840429.65
A142: Q12014 | B142: 2014Q1 | E142: 0 | F142: =IFERROR(VLOOKUP(A142,'[10]Qtr Maturity'!$A$2:$C$16,3,FALSE),0) -> 0 | I142: 0 | J142: 0 | M142: 0 | N142: 0 | Q142: 0 | R142: 0 | U142: 0 | V142: 0 | Y142: 0 | Z142: 0 | AC142: 0 | AD142: 0 | AG142: 0 | AH142: 0 | AK142: 0 | AL142: 0 | AP142: 4.812742048e-05 | AQ142: 11784.03 | AT142: 0.003369393771 | AU142: 934897.11 | AX142: 0.01247873962 | AY142: 4282494 | BB142: 0.01420914887 | BC142: 5222892.39
A143: Q22014 | B143: 2014Q2 | E143: 0 | F143: =IFERROR(VLOOKUP(A143,'[10]Qtr Maturity'!$A$2:$C$16,3,FALSE),0) -> 0 | I143: 0 | J143: 0 | M143: 0 | N143: 0 | Q143: 0 | R143: 0 | U143: 0 | V143: 0 | Y143: 0 | Z143: 0 | AC143: 0 | AD143: 0 | AG143: 0 | AH143: 0 | AK143: 0 | AL143: 0 | AP143: 0.0002624800507 | AQ143: 64268.41 | AT143: 0.007493262517 | AU143: 2079136.47 | AX143: 0.007406964293 | AY143: 2541945.83 | BB143: 0.007893864286 | BC143: 2901567.44
A144: Q32014 | B144: 2014Q3 | E144: 0 | F144: =IFERROR(VLOOKUP(A144,'[10]Qtr Maturity'!$A$2:$C$16,3,FALSE),0) -> 0 | I144: 0 | J144: 0 | M144: 0 | N144: 0 | Q144: 0 | R144: 0 | U144: 0 | V144: 0 | Y144: 0 | Z144: 0 | AC144: 0 | AD144: 0 | AG144: 0.0001084084859 | AH144: 22138.63 | AK144: 0.000358070363 | AL144: 80496.27 | AP144: 0.004634208396 | AQ144: 1134688.92 | AT144: 0.006795039365 | AU144: 1885402.27 | AX144: 0.006814714526 | AY144: 2338695.65 | BB144: 0.007383964772 | BC144: 2714142.4
A145: Q42014 | B145: 2014Q4 | E145: 0 | F145: =IFERROR(VLOOKUP(A145,'[10]Qtr Maturity'!$A$2:$C$16,3,FALSE),0) -> 0 | I145: 0 | J145: 0 | M145: 0 | N145: 0 | Q145: 0 | R145: 0 | U145: 0 | V145: 0 | Y145: 0 | Z145: 0 | AC145: 0 | AD145: 0 | AG145: 0.0004449509424 | AH145: 90865.62 | AK145: 0.007911952758 | AL145: 1778652.33 | AP145: 0.009016141289 | AQ145: 2207608.02 | AT145: 0.009828795465 | AU145: 2727170.85 | AX145: 0.009749893264 | AY145: 3345999.73 | BB145: 0.01513125362 | BC145: 5561832.74
A146: Q12015 | B146: 2015Q1 | E146: 0 | F146: =IFERROR(VLOOKUP(A146,'[10]Qtr Maturity'!$A$2:$C$16,3,FALSE),0) -> 0 | I146: 0 | J146: 0 | M146: 0 | N146: 0 | Q146: 0 | R146: 0 | U146: 0 | V146: 0 | Y146: 0.0001989429805 | Z146: 24347.63 | AC146: 0.002206086574 | AD146: 322792.97 | AG146: 0.04125846629 | AH146: 8425594.29 | AK146: 0.04002078282 | AL146: 8996901.37 | AP146: 0.03985410349 | AQ146: 9758302.99 | AT146: 0.03798181791 | AU146: 10538718.3 | AX146: 0.05643503287 | AY146: 19367556.1 | BB146: 0.05569733188 | BC146: 20472807.59
A147: Q22015 | B147: 2015Q2 | E147: 0 | F147: =IFERROR(VLOOKUP(A147,'[10]Qtr Maturity'!$A$2:$C$16,3,FALSE),0) -> 0 | I147: 0 | J147: 0 | M147: 0 | N147: 0 | Q147: 0 | R147: 0 | U147: 0.0002365871224 | V147: 25298.1 | Y147: 0.0008476559905 | Z147: 103740.35 | AC147: 0.02305732378 | AD147: 3373730.71 | AG147: 0.02388239116 | AH147: 4877140.54 | AK147: 0.02726504413 | AL147: 6129338.2 | AP147: 0.03092991234 | AQ147: 7573209.02 | AT147: 0.04028175324 | AU147: 11176875.5 | AX147: 0.0369692096 | AY147: 12687212.26 | BB147: 0.03841443145 | BC147: 14120088.65
A148: Q32015 | B148: 2015Q3 | E148: 0 | F148: =IFERROR(VLOOKUP(A148,'[10]Qtr Maturity'!$A$2:$C$16,3,FALSE),0) -> 0 | I148: 0 | J148: 0 | M148: 0 | N148: 0 | Q148: 5.17312139e-05 | R148: 4963.19 | U148: 0.0006027265515 | V148: 64449.14 | Y148: 0.02276331971 | Z148: 2785888.12 | AC148: 0.02695236182 | AD148: 3943649.82 | AG148: 0.02976535468 | AH148: 6078529.45 | AK148: 0.03157875594 | AL148: 7099085.34 | AP148: 0.03984538618 | AQ148: 9756168.55 | AT148: 0.04032062602 | AU148: 11187661.43 | AX148: 0.03882100657 | AY148: 13322717.9 | BB148: 0.03935613399 | BC148: 14466232.61
A149: Q42015 | B149: 2015Q4 | E149: 0 | F149: =IFERROR(VLOOKUP(A149,'[10]Qtr Maturity'!$A$2:$C$16,3,FALSE),0) -> 0 | I149: 0 | J149: 0 | M149: 3.320868859e-05 | N149: 1940.97 | Q149: 0.0008267701099 | R149: 79321.88 | U149: 0.02695084766 | V149: 2881835.8 | Y149: 0.03401854492 | Z149: 4163358.48 | AC149: 0.03838507315 | AD149: 5616475.76 | AG149: 0.03710860961 | AH149: 7578131.65 | AK149: 0.05162546331 | AL149: 11605700.06 | AP149: 0.05598135099 | AQ149: 13707069.96 | AT149: 0.05615701188 | AU149: 15581743.09 | AX149: 0.05259008083 | AY149: 18048033.09 | BB149: 0.05885873353 | BC149: 21634851.9
A150: Q12016 | B150: 2016Q1 | E150: 0 | F150: =IFERROR(VLOOKUP(A150,'[10]Qtr Maturity'!$A$2:$C$16,3,FALSE),0) -> 0 | I150: 0.0006034895873 | J150: 25340.41 | M150: 0.01853790568 | N150: 1083497.13 | Q150: 0.1495247244 | R150: 14345683.41 | U150: 0.1458570305 | V150: 15596393.02 | Y150: 0.1413765386 | Z150: 17302362.94 | AC150: 0.1277894177 | AD150: 18698053.91 | AG150: 0.1685391303 | AH150: 34418204.59 | AK150: 0.1603677597 | AL150: 36051591.58 | AP150: 0.1555905819 | AQ150: 38096454.51 | AT150: 0.1440169985 | AU150: 39960029.85 | AX150: 0.1654127188 | AY150: 56766868.86 | BB150: 0.1597350041 | BC150: 58714194.97
A151: Q22016 | B151: 2016Q2 | E151: 0.001124985496 | F151: =IFERROR(VLOOKUP(A151,'[10]Qtr Maturity'!$A$2:$C$16,3,FALSE),0) -> 39957.64 | I151: 0.00264791395 | J151: 111185.39 | M151: 0.07055433386 | N151: 4123735.42 | Q151: 0.053644019 | R151: 5146708.12 | U151: 0.05365955293 | V151: 5737779.48 | Y151: 0.053315533 | Z151: 6525019.72 | AC151: 0.07348481977 | AD151: 10752244.95 | AG151: 0.05844422947 | AH151: 11935183.5 | AK151: 0.05755871425 | AL151: 12939528.88 | AP151: 0.05750134028 | AQ151: 14079240.32 | AT151: 0.06623964544 | AU151: 18379345.75 | AX151: 0.05685960256 | AY151: 19513261.29 | BB151: 0.05638804628 | BC151: 20726695.21
A152: Q32016 | B152: 2016Q3 | E152: 0.003843592706 | F152: =IFERROR(VLOOKUP(A152,'[10]Qtr Maturity'!$A$2:$C$16,3,FALSE),0) -> 136518.11 | I152: 0.04067436265 | J152: 1707908.55 | M152: 0.0460400583 | N152: 2690933.48 | Q152: 0.04809947483 | R152: 4614754.12 | U152: 0.05515268953 | V152: 5897439.56 | Y152: 0.06350053125 | Z152: 7771510.39 | AC152: 0.06010959945 | AD152: 8795192.52 | AG152: 0.05245651107 | AH152: 10712402.08 | AK152: 0.05907979824 | AL152: 13281477.28 | AP152: 0.0619536912 | AQ152: 15169401.32 | AT152: 0.06072069387 | AU152: 16848016.31 | AX152: 0.05472444165 | AY152: 18780509.9 | BB152: 0.05418514621 | BC152: 19916969.72
A153: Q42016 | B153: 2016Q4 | E153: 0.05419818544 | F153: =IFERROR(VLOOKUP(A153,'[10]Qtr Maturity'!$A$2:$C$16,3,FALSE),0) -> 1925030.67 | I153: 0.05899686671 | J153: 2477266.92 | M153: 0.06202017089 | N153: 3624933.6 | Q153: 0.0512447986 | R153: 4916522.4 | U153: 0.0638617227 | V153: 6828690.55 | Y153: 0.06552763137 | Z153: 8019596.97 | AC153: 0.06389129978 | AD153: 9348528.14 | AG153: 0.05396239317 | AH153: 11019925.67 | AK153: 0.05831477909 | AL153: 13109496.59 | AP153: 0.05991410823 | AQ153: 14670008.11 | AT153: 0.05926740601 | AU153: 16444776.23 | AX153: 0.05454875791 | AY153: 18720218.19 | BB153: 0.05569263749 | BC153: 20471082.06
A154: Q12017 | B154: 2017Q1 | E154: 0.3877292316 | F154: =IFERROR(VLOOKUP(A154,'[10]Qtr Maturity'!$A$2:$C$16,3,FALSE),0) -> 13771506.49 | I154: 0.363162457 | J154: 15249120.7 | M154: 0.289365309 | N154: 16912723.98 | Q154: 0.3214284477 | R154: 30838450.08 | U154: 0.2945102155 | V154: 31491776.93 | Y154: 0.2748692204 | Z154: 33639860.33 | AC154: 0.23981836 | AD154: 35090046.61 | AG154: 0.2534866915 | AH154: 51765763.8 | AK154: 0.2371917834 | AL154: 53322072.46 | AP154: 0.2262516213 | AQ154: 55397855.66 | AT154: 0.2086942428 | AU154: 57905860.15 | AX154: 0.2168207407 | AY154: 74409239.17 | BB154: 0.2081614305 | BC154: 76514417.65
A155: Q22017 | B155: 2017Q2 | E155: 0.1811220063 | F155: =IFERROR(VLOOKUP(A155,'[10]Qtr Maturity'!$A$2:$C$16,3,FALSE),0) -> 6433156.65 | I155: 0.171218022 | J155: 7189411.33 | M155: 0.2143478824 | N155: 12528131.25 | Q155: 0.1477975388 | R155: 14179973.97 | U155: 0.1391423774 | V155: 14878399.73 | Y155: 0.1285298489 | Z155: 15730121.25 | AC155: 0.1494741481 | AD155: 21870947.75 | AG155: 0.1171693977 | AH155: 23927738.89 | AK155: 0.1125295142 | AL155: 25297279.8 | AP155: 0.1066648427 | AQ155: 26116955.66 | AT155: 0.1176703545 | AU155: 32649693.63 | AX155: 0.100326235 | AY155: 34430280.02 | BB155: 0.09456932403 | BC155: 34761082.97
A156: Q32017 | B156: 2017Q3 | E156: 0.08886825931 | F156: =IFERROR(VLOOKUP(A156,'[10]Qtr Maturity'!$A$2:$C$16,3,FALSE),0) -> 3156454.84 | I156: 0.09789981841 | J156: 4110794.27 | M156: 0.08428810623 | N156: 4926442.22 | Q156: 0.06103260444 | R156: 5855582.91 | U156: 0.05775705652 | V156: 6175922.75 | Y156: 0.06223595289 | Z156: 7616745.01 | AC156: 0.05630948917 | AD156: 8239163.17 | AG156: 0.04592407829 | AH156: 9378381.86 | AK156: 0.04347672935 | AL156: 9773817.96 | AP156: 0.04425174747 | AQ156: 10835068.96 | AT156: 0.04199929321 | AU156: 11653436.94 | AX156: 0.03758949667 | AY156: 12900084.37 | BB156: 0.03596215083 | BC156: 13218697.73
A157: Q42017 | B157: 2017Q4 | E157: 0.1012233576 | F157: =IFERROR(VLOOKUP(A157,'[10]Qtr Maturity'!$A$2:$C$16,3,FALSE),0) -> 3595287.67 | I157: 0.09306792908 | J157: 3907904.18 | M157: 0.07731948115 | N157: 4519142.42 | Q157: 0.05517301445 | R157: 5293402.82 | U157: 0.0591008872 | V157: 6319617.65 | Y157: 0.05831660909 | Z157: 7137076.25 | AC157: 0.05270538336 | AD157: 7711813.05 | AG157: 0.04173333395 | AH157: 8522569.35 | AK157: 0.04229610385 | AL157: 9508406.58 | AP157: 0.04146861514 | AQ157: 10153617.21 | AT157: 0.0391015936 | AU157: 10849419.61 | AX157: 0.03429750619 | AY157: 11770328.49 | BB157: 0.03499458174 | BC157: 12863045.94
A158: Q12018 | B158: 2018Q1 | E158: 0.1453842331 | F158: =IFERROR(VLOOKUP(A158,'[10]Qtr Maturity'!$A$2:$C$16,3,FALSE),0) -> 5163809.55 | I158: 0.1362860135 | J158: 5722623.11 | M158: 0.1054957014 | N158: 6165976.44 | Q158: 0.08961664912 | R158: 8597989.94 | U158: 0.08353169535 | V158: 8931987.34 | Y158: 0.07581838085 | Z158: 9279030 | AC158: 0.06770214467 | AD158: 9906128.17 | AG158: 0.06180611247 | AH158: 12621730.16 | AK158: 0.05766641657 | AL158: 12963740.98 | AP158: 0.05387471485 | AQ158: 13191258.74 | AT158: 0.04822267284 | AU158: 13380222.24 | AX158: 0.04686701741 | AY158: 16083973.78 | BB158: 0.04401385935 | BC158: 16178284.37
A159: Q22018 | B159: 2018Q2 | E159: 0.03620153815 | F159: =IFERROR(VLOOKUP(A159,'[10]Qtr Maturity'!$A$2:$C$16,3,FALSE),0) -> 1285819.27 | I159: 0.03211502661 | J159: 1348503.7 | M159: 0.02960687758 | N159: 1730452.59 | Q159: 0.0194435062 | R159: 1865446.57 | U159: 0.01773739194 | V159: 1896647.25 | Y159: 0.01571053157 | Z159: 1922732.88 | AC159: 0.01562967851 | AD159: 2286923.1 | AG159: 0.01183899364 | AH159: 2417699.11 | AK159: 0.0108770707 | AL159: 2445227.84 | AP159: 0.01009007421 | AQ159: 2470561.19 | AT159: 0.01007397042 | AU159: 2795198.92 | AX159: 0.008800996947 | AY159: 3020354.44 | BB159: 0.008292089044 | BC159: 3047943.91
A160: Q32018 | B160: 2018Q3 | E160: 0 | F160: =IFERROR(VLOOKUP(A160,'[10]Qtr Maturity'!$A$2:$C$16,3,FALSE),0) -> 0 | I160: 0.003070436513 | J160: 128927.03 | M160: 0.002205854593 | N160: 128927.03 | Q160: 0.001952881128 | R160: 187363.09 | U160: 0.001752214368 | V160: 187363.09 | Y160: 0.002842318627 | Z160: 347857.07 | AC160: 0.002377383906 | AD160: 347857.07 | AG160: 0.001971504065 | AH160: 402610.54 | AK160: 0.001790926489 | AL160: 402610.54 | AP160: 0.001784013099 | AQ160: 436816.76 | AT160: 0.001574299091 | AU160: 436816.76 | AX160: 0.0014223299 | AY160: 488119.75 | BB160: 0.001327955025 | BC160: 488119.75
A161: Q42018 | B161: 2018Q4 | E161: 0.0003046103467 | F161: =IFERROR(VLOOKUP(A161,'[10]Qtr Maturity'!$A$2:$C$16,3,FALSE),0) -> 10819.26 | I161: 0.0002576639744 | J161: 10819.26 | M161: 0.000185110247 | N161: 10819.26 | Q161: 0.0001638399178 | R161: 15719.11 | U161: 0.0001470046763 | V161: 15719.11 | Y161: 0.0001284398766 | Z161: 15719.11 | AC161: 0.000107430213 | AD161: 15719.11 | AG161: 9.944312712e-05 | AH161: 20307.77 | AK161: 9.033475185e-05 | AL161: 20307.77 | AP161: 8.293941765e-05 | AQ161: 20307.77 | AT161: 7.318973715e-05 | AU161: 20307.77 | AX161: 7.169633835e-05 | AY161: 24604.98 | BB161: 6.693912063e-05 | BC161: 24604.98
A162: Q12019 | B162: 2019Q1 | E162: 0 | F162: =IFERROR(VLOOKUP(A162,'[10]Qtr Maturity'!$A$2:$C$16,3,FALSE),0) -> 0 | I162: 0 | J162: 0 | M162: 0 | N162: 0 | Q162: 0 | R162: 0 | U162: 0 | V162: 0 | Y162: 0 | Z162: 0 | AC162: 0 | AD162: 0 | AG162: 0 | AH162: 0 | AK162: 0 | AL162: 0 | AP162: 0 | AQ162: 0 | AT162: 0 | AU162: 0 | AX162: 0 | AY162: 0 | BB162: 0 | BC162: 0
A163: Q22019 | B163: 2019Q2 | E163: 0 | F163: =IFERROR(VLOOKUP(A163,'[10]Qtr Maturity'!$A$2:$C$16,3,FALSE),0) -> 0 | I163: 0 | J163: 0 | M163: 0 | N163: 0 | Q163: 0 | R163: 0 | U163: 0 | V163: 0 | Y163: 0 | Z163: 0 | AC163: 0 | AD163: 0 | AG163: 0 | AH163: 0 | AK163: 0 | AL163: 0 | AP163: 0 | AQ163: 0 | AT163: 0 | AU163: 0 | AX163: 0 | AY163: 0 | BB163: 0 | BC163: 0
A164: Q32019 | B164: 2019Q3 | E164: 0 | F164: =IFERROR(VLOOKUP(A164,'[10]Qtr Maturity'!$A$2:$C$16,3,FALSE),0) -> 0 | I164: 0 | J164: 0 | M164: 0 | N164: 0 | Q164: 0 | R164: 0 | U164: 0 | V164: 0 | Y164: 0 | Z164: 0 | AC164: 0 | AD164: 0 | AG164: 0 | AH164: 0 | AK164: 0 | AL164: 0 | AP164: 0 | AQ164: 0 | AT164: 0 | AU164: 0 | AX164: 0 | AY164: 0 | BB164: 0 | BC164: 0
A165: Q42019 | B165: 2019Q4 | E165: 0 | F165: =IFERROR(VLOOKUP(A165,'[10]Qtr Maturity'!$A$2:$C$16,3,FALSE),0) -> 0 | I165: 0 | J165: 0 | M165: 0 | N165: 0 | Q165: 0 | R165: 0 | U165: 0 | V165: 0 | Y165: 0 | Z165: 0 | AC165: 0 | AD165: 0 | AG165: 0 | AH165: 0 | AK165: 0 | AL165: 0 | AP165: 0 | AQ165: 0 | AT165: 0 | AU165: 0 | AX165: 0 | AY165: 0 | BB165: 0 | BC165: 0
E167: =SUM(E138:E165) -> 1 | F167: =SUM(F138:F166) -> 35518360.15 | I167: 1 | J167: 41989804.85 | M167: 1 | N167: 58447655.79 | Q167: 1 | R167: 95941881.61 | U167: 1 | V167: 106929319.5 | Y167: 1 | Z167: 122384966.5 | AC167: 1 | AD167: 146319266.8 | AG167: =SUM(AG138:AG165) -> 1 | AH167: =SUM(AH138:AH166) -> 204214917.5 | AK167: 1 | AL167: 224805731.8 | AP167: 1 | AQ167: 244850646.1 | AT167: 1 | AU167: 277467453.6 | AX167: 1 | AY167: 343183216.4 | BB167: 1 | BC167: 367572501.2
A168: 0 to 6 months
A169: 07 to 12 months | B169: Seasoning Distribution
A170: 0 to 6 months | B170: 0 to 6 months | E170: =F170/F$181 -> 0 | F170: =IFERROR(VLOOKUP(A170,[10]seasoning!$A$2:$C$8,3,FALSE),0) -> 0 | I170: 0 | J170: 0 | M170: 0 | N170: 0 | Q170: 0 | R170: 0 | U170: 0 | V170: 0 | Y170: 0 | Z170: 0 | AC170: 0 | AD170: 0 | AG170: =AH170/AH$181 -> 0 | AH170: 0 | AK170: 0 | AL170: 0 | AP170: 0 | AQ170: 0 | AT170: 0 | AU170: 0 | AX170: 0 | AY170: 0 | BB170: 0.03223101892 | BC170: 11847236.24
A171: 07 to 12 months | B171: 07 to 12 months | E171: 0 | F171: =IFERROR(VLOOKUP(A171,[10]seasoning!$A$2:$C$8,3,FALSE),0) -> 0 | I171: 0 | J171: 0 | M171: 0 | N171: 0 | Q171: 0 | R171: 0 | U171: 0 | V171: 0 | Y171: 0 | Z171: 0 | AC171: 0 | AD171: 0 | AG171: 0 | AH171: 0 | AK171: 0 | AL171: 0 | AP171: 0 | AQ171: 0 | AT171: 0.03750507169 | AU171: 10406436.74 | AX171: 0.1185068623 | AY171: 40669566.16 | BB171: 0.3051640991 | BC171: 112169931.2
A172: 13 to 18 months | B172: 13 to 18 months | E172: 0 | F172: =IFERROR(VLOOKUP(A172,[10]seasoning!$A$2:$C$8,3,FALSE),0) -> 0 | I172: 0 | J172: 0 | M172: 0 | N172: 0 | Q172: 0 | R172: 0 | U172: 0 | V172: 0 | Y172: 0 | Z172: 0 | AC172: 0 | AD172: 0 | AG172: 0 | AH172: 0 | AK172: 0.0366485724 | AL172: 8238809.14 | AP172: 0.125958046 | AQ172: 30840908.95 | AT172: 0.3127518336 | AU172: 86778454.88 | AX172: 0.344343907 | AY172: 118173049.5 | BB172: 0.2377991657 | BC172: 87408434.11
A173: 19 to 24 months | B173: 19 to 24 months | E173: 0 | F173: =IFERROR(VLOOKUP(A173,[10]seasoning!$A$2:$C$8,3,FALSE),0) -> 0 | I173: 0 | J173: 0 | M173: 0 | N173: 0 | Q173: 0 | R173: 0 | U173: 0 | V173: 0 | Y173: 0 | Z173: 0 | AC173: 0.04511650259 | AD173: 6601413.58 | AG173: 0.1350335325 | AH173: 27575861.69 | AK173: 0.3339377062 | AL173: 75071110.42 | AP173: 0.364176958 | AQ173: 89168963.46 | AT173: 0.2540119501 | AU173: 70480048.99 | AX173: 0.2020032648 | AY173: 69324130.14 | BB173: 0.1990352719 | BC173: 73159892.71
A174: 25 to 30 months | B174: 25 to 30 months | E174: 0 | F174: =IFERROR(VLOOKUP(A174,[10]seasoning!$A$2:$C$8,3,FALSE),0) -> 0 | I174: 0 | J174: 0 | M174: 0 | N174: 0 | Q174: 0 | R174: 0 | U174: 0.0465256725 | V174: 4974958.5 | Y174: 0.1455589744 | Z174: 17814230.2 | AC174: 0.348825633 | AD174: 51039910.86 | AG174: 0.3688551346 | AH174: 75325720.89 | AK174: 0.2453164188 | AL174: 55148537.06 | AP174: 0.198858538 | AQ174: 48690641.51 | AT174: 0.1915255003 | AU174: 53142092.88 | AX174: 0.2475728884 | AY174: 84962860.12 | BB174: 0.1576850189 | BC174: 57960676.8
A175: 31 to 36 months | B175: 31 to 36 months | E175: 0 | F175: =IFERROR(VLOOKUP(A175,[10]seasoning!$A$2:$C$8,3,FALSE),0) -> 0 | I175: 0 | J175: 0 | M175: 0.06406777636 | N175: 3744611.34 | Q175: 0.1595702141 | R175: 15309466.59 | U175: 0.3768961654 | V175: 40301250.49 | Y175: 0.4056255293 | Z175: 49642466.81 | AC175: 0.2655887727 | AD175: 38860754.5 | AG175: 0.2018392386 | AH175: 41218583.46 | AK175: 0.190426548 | AL175: 42808979.48 | AP175: 0.2392777898 | AQ175: 58587321.44 | AT175: 0.1526678449 | AU175: 42360358.17 | AX175: 0.03585937261 | AY175: 12306334.83 | BB175: 0.02670469741 | BC175: 9815912.42
A176: 37 to 42 months | B176: 37 to 42 months | E176: 0.06726662013 | F176: =IFERROR(VLOOKUP(A176,[10]seasoning!$A$2:$C$8,3,FALSE),0) -> 2389200.04 | I176: 0.1725325825 | J176: 7244609.47 | M176: 0.3868658033 | N176: 22611399.31 | Q176: 0.4040487536 | R176: 38765197.68 | U176: 0.2576044896 | V176: 27545472.77 | Y176: 0.194612157 | Z176: 23817602.31 | AC176: 0.1765196206 | AD176: 25828221.46 | AG176: 0.2247557437 | AH176: 45898475.65 | AK176: 0.1495100796 | AL176: 33610722.87 | AP176: 0.0332481197 | AQ176: 8140823.59 | AT176: 0.02268274408 | AU176: 6293723.24 | AX176: 0.03157016443 | AY176: 10834350.57 | BB176: 0.02576500247 | BC176: 9470506.4
A177: 43 to 48 months | B177: 43 to 48 months | E177: 0.4618971276 | F177: =IFERROR(VLOOKUP(A177,[10]seasoning!$A$2:$C$8,3,FALSE),0) -> 16405828.53 | I177: 0.499436596 | J177: 20971245.2 | M177: 0.3172597234 | N177: 18543087.11 | Q177: 0.2175077213 | R177: 20868100.05 | U177: 0.1801417137 | V177: 19262430.86 | Y177: 0.2103974377 | Z177: 25749483.37 | AC177: 0.1376856986 | AD177: 20146070.47 | AG177: 0.03681335816 | AH177: 7517836.9 | AK177: 0.02207717201 | AL177: 4963074.81 | AP177: 0.02713868832 | AQ177: 6644925.37 | AT177: 0.02328756871 | AU177: 6461542.39 | AX177: 0.01370962965 | AY177: 4704914.8 | BB177: 0.005895119855 | BC177: 2166883.95
A178: 49 to 54 months | B178: 49 to 54 months | E178: 0.3241127744 | F178: =IFERROR(VLOOKUP(A178,[10]seasoning!$A$2:$C$8,3,FALSE),0) -> 11511954.25 | I178: 0.2341284322 | J178: 9831007.18 | M178: 0.1498417589 | N178: 8757899.55 | Q178: 0.1870650763 | R178: 17947375.4 | U178: 0.1261758981 | V178: 13491902.92 | Y178: 0.02911693782 | Z178: 3563475.46 | AC178: 0.01361589901 | AD178: 1992268.36 | AG178: 0.02342777647 | AH178: 4784301.44 | AK178: 0.01915879113 | AL178: 4307006.06 | AP178: 0.009717579095 | AQ178: 2379355.52 | AT178: 0.003671486607 | AU178: 1018718.04 | AX178: 0.002379484051 | AY178: 816598.99 | BB178: 0.001375055774 | BC178: 505432.69
A179: 55 to 60 months | B179: 55 to 60 months | E179: 0.1385061695 | F179: =IFERROR(VLOOKUP(A179,[10]seasoning!$A$2:$C$8,3,FALSE),0) -> 4919512.01 | I179: 0.08784574168 | J179: 3688625.55 | M179: 0.08196493658 | N179: 4790658.4 | Q179: 0.03074706573 | R179: 2949931.34 | U179: 0.01133361819 | V179: 1211896.08 | Y179: 0.01384057093 | Z179: 1693877.81 | AC179: 0.01208720429 | AD179: 1768590.87 | AG179: 0.008436163142 | AH179: 1722790.36 | AK179: 0.002822337513 | AL179: 634477.65 | AP179: 0.00139994166 | AQ179: 342776.62 | AT179: 0.0009261515058 | AU179: 256976.9 | AX179: 0.003485962695 | AY179: 1196323.89 | BB179: 0.007342220844 | BC179: 2698798.48
A180: 60+ months | B180: 61 to 72 months | E180: 0.008217308422 | F180: =IFERROR(VLOOKUP(A180,[10]seasoning!$A$2:$C$8,3,FALSE),0) -> 291865.32 | I180: 0.006056647582 | J180: 254317.45 | M180: 1.368746084e-09 | N180: 0.08 | Q180: 0.001061168994 | R180: 101810.55 | U180: 0.001322442532 | V180: 141407.88 | Y180: 0.0008483929274 | Z180: 103830.54 | AC180: 0.0005606692255 | AD180: 82036.71 | AG180: 0.0008390528571 | AH180: 171347.11 | AK180: 0.000102374347 | AL180: 23014.34 | AP180: 0.0002243394121 | AQ180: 54929.65 | AT180: 0.0009698485227 | AU180: 269101.4 | AX180: 0.0005684641925 | AY180: 195087.37 | BB180: 0.001003329245 | BC180: 368796.24
A181: 61 to 72 months | B181: Total | E181: =SUM(E170:E180) -> 1 | F181: =SUM(F170:F180) -> 35518360.15 | I181: 1 | J181: 41989804.85 | M181: 1 | N181: 58447655.79 | Q181: 1 | R181: 95941881.61 | U181: 1 | V181: 106929319.5 | Y181: 1 | Z181: 122384966.5 | AC181: 1 | AD181: 146319266.8 | AG181: =SUM(AG170:AG180) -> 1 | AH181: =SUM(AH170:AH180) -> 204214917.5 | AK181: 1 | AL181: 224805731.8 | AP181: 1 | AQ181: 244850646.1 | AT181: 1 | AU181: 277467453.6 | AX181: 1 | AY181: 343183216.4 | BB181: 1 | BC181: 367572501.2
B183: Remaining Term Distribution
A184: 0 - 12 months | B184: 0-12 Months | E184: =F184/F$190 -> 0.7215787283 | F184: =IFERROR(VLOOKUP(A184,'[10]remaining term'!$A$2:$C$5,3,FALSE),0) -> 25629293.15 | I184: 0.6400960789 | J184: 26877509.44 | M184: 0.5232972433 | N184: 30585497.15 | Q184: 0.3069885573 | R184: 29453059.82 | U184: 0.2808175644 | V184: 30027631.07 | Y184: 0.2559545838 | Z184: 31324993.17 | AC184: 0.2275294959 | AD184: 33291949.02 | AG184: =AH184/AH$190 -> 0.136324654 | AH184: 27839527.98 | AK184: 0.1110733095 | AL184: 24969916.63 | AP184: 0.0869983019 | AQ184: 21301590.43 | AT184: 0.07282605951 | AU184: 20206861.29 | AX184: 0.04120139373 | AY184: 14139626.82 | BB184: 0.04716175887 | BC184: 15855852.1
A185: 13 - 24 months | B185: 13-24 Months | E185: 0.2781166613 | F185: =IFERROR(VLOOKUP(A185,'[10]remaining term'!$A$2:$C$5,3,FALSE),0) -> 9878247.74 | I185: 0.3565758206 | J185: 14972549.12 | M185: 0.4540982693 | N185: 26540979.34 | Q185: 0.5861206763 | R185: 56233520.53 | U185: 0.5606505814 | V185: 59949985.15 | Y185: 0.5306751557 | Z185: 64946661.15 | AC185: 0.4539259594 | AD185: 66418113.56 | AG185: 0.3316355601 | AH185: 67724928.55 | AK185: 0.3201696079 | AL185: 71975963.01 | AP185: 0.309899344 | AQ185: 75879054.61 | AT185: 0.2841055252 | AU185: 78830036.64 | AX185: 0.1860848676 | AY185: 63861203.38 | BB185: 0.1652650331 | BC185: 55562345.11
A186: 25 - 36 months | B186: 25-36 Months | E186: 0.0003046103467 | F186: =IFERROR(VLOOKUP(A186,'[10]remaining term'!$A$2:$C$5,3,FALSE),0) -> 10819.26 | I186: 0.003328100488 | J186: 139746.29 | M186: 0.02260448742 | N186: 1321179.3 | Q186: 0.1068907665 | R186: 10255301.26 | U186: 0.1583848494 | V186: 16935984.17 | Y186: 0.210399502 | Z186: 25749736 | AC186: 0.3047649302 | AD186: 44592981.14 | AG186: 0.459036676 | AH186: 93742136.91 | AK186: 0.4603225428 | AL186: 103483146.1 | AP186: 0.4526943011 | AQ186: 110842492.1 | AT186: 0.4027812741 | AU186: 111758694.5 | AX186: 0.3286957235 | AY186: 112802855.6 | BB186: 0.3497533278 | BC186: 117587578.8
A187: 37 - 48 months | B187: 37-48 Months | E187: 0 | F187: =IFERROR(VLOOKUP(A187,'[10]remaining term'!$A$2:$C$5,3,FALSE),0) -> 0 | I187: 0 | J187: 0 | M187: 0 | N187: 0 | Q187: 0 | R187: 0 | U187: 0.0001470046763 | V187: 15719.11 | Y187: 0.002970758504 | Z187: 363576.18 | AC187: 0.0137796145 | AD187: 2016223.09 | AG187: 0.07300310987 | AH187: 14908324.06 | AK187: 0.1083442051 | AL187: 24356398.31 | AP187: 0.1485411005 | AQ187: 36370384.42 | AT187: 0.231268757 | AU187: 64169553.1 | AX187: 0.3888756462 | AY187: 133455595 | BB187: 0.437746695 | BC187: 147171077.2
A188: 49 - 60 months | B188: 49-60 Months | E188: 0 | F188: =IFERROR(VLOOKUP(A188,'[10]remaining term'!$A$2:$C$5,3,FALSE),0) -> 0 | I188: 0 | J188: 0 | M188: 0 | N188: 0 | Q188: 0 | R188: 0 | U188: 0 | V188: 0 | Y188: 0 | Z188: 0 | AC188: 0 | AD188: 0 | AG188: 0 | AH188: 0 | AK188: 9.033475185e-05 | AL188: 20307.77 | AP188: 0.001866952517 | AQ188: 457124.53 | AT188: 0.009018384201 | AU188: 2502308.1 | AX188: 0.05514236905 | AY188: 18923935.57 | BB188: 0 | BC188: 0
A189: 60+ Months | B189: 60+ Months | E189: 0 | F189: =IFERROR(VLOOKUP(#REF!,'[2]remaining term'!$A$2:$C$5,3,FALSE),0) -> 0 | I189: 0 | J189: 0 | M189: 0 | N189: 0 | Q189: 0 | R189: 0 | U189: 0 | V189: 0 | Y189: 0 | Z189: 0 | AC189: 0 | AD189: 0 | AG189: 0 | AH189: 0 | AK189: 0 | AL189: 0 | AP189: 0 | AQ189: 0 | AT189: 0 | AU189: 0 | AX189: 0 | AY189: 0 | BB189: 7.31852269e-05 | BC189: 24604.98
E190: =SUM(E184:E189) -> 1 | F190: =SUM(F184:F189) -> 35518360.15 | I190: 1 | J190: 41989804.85 | M190: 1 | N190: 58447655.79 | Q190: 1 | R190: 95941881.61 | U190: 1 | V190: 106929319.5 | Y190: 1 | Z190: 122384966.5 | AC190: 1 | AD190: 146319266.8 | AG190: =SUM(AG184:AG189) -> 1 | AH190: =SUM(AH184:AH189) -> 204214917.5 | AK190: 1 | AL190: 224805731.8 | AP190: 1 | AQ190: 244850646.1 | AT190: 1 | AU190: 277467453.6 | AX190: 1 | AY190: 343183216.4 | BB190: 1 | BC190: 336201458.2
B192: Origination LVR Distribution
A193: 01. 10% to 20% | B193: 10% to 20% | E193: =F193/F$203 -> 0.001179574728 | F193: =IFERROR(VLOOKUP(A193,[10]LVR!$A$2:$C$10,3,FALSE),0) -> 41896.56 | I193: 0.001136178655 | J193: 47707.92 | M193: 0.001601140862 | N193: 93582.93 | Q193: 0.001954589141 | R193: 187526.96 | U193: 0.001756747362 | V193: 187847.8 | Y193: 0.001839118941 | Z193: 225080.51 | AC193: 0.002104570004 | AD193: 307939.14 | AG193: =AH193/AH$203 -> 0.002161230998 | AH193: 441355.61 | AK193: 0.001978512275 | AL193: 444780.9 | AP193: 0.002231049779 | AQ193: 546273.98 | AT193: 0.002672805117 | AU193: 741616.43 | AX193: 0.002672637839 | AY193: 917204.45 | BB193: 0.002575286282 | BC193: 946604.42
A194: 02. 21% to 30% | B194: 21% to 30% | E194: 0.01456752333 | F194: =IFERROR(VLOOKUP(A194,[10]LVR!$A$2:$C$10,3,FALSE),0) -> 517414.54 | I194: 0.01460462063 | J194: 613245.17 | M194: 0.01482123548 | N194: 866266.47 | Q194: 0.01857790154 | R194: 1782398.83 | U194: 0.01818146117 | V194: 1944131.27 | Y194: 0.01720286903 | Z194: 2105372.55 | AC194: 0.01702191157 | AD194: 2490633.62 | AG194: 0.01907587823 | AH194: 3895578.9 | AK194: 0.01825518449 | AL194: 4103870.11 | AP194: 0.01782017119 | AQ194: 4363280.43 | AT194: 0.01759669423 | AU194: 4882509.94 | AX194: 0.01844295725 | AY194: 6329313.39 | BB194: 0.01756075541 | BC194: 6454850.79
A195: 03. 31% to 40% | B195: 31% to 40% | E195: 0.05271499253 | F195: =IFERROR(VLOOKUP(A195,[10]LVR!$A$2:$C$10,3,FALSE),0) -> 1872350.09 | I195: 0.04638327677 | J195: 1947624.74 | M195: 0.04683620469 | N195: 2737466.37 | Q195: 0.05692825905 | R195: 5461804.29 | U195: 0.05427254402 | V195: 5803326.2 | Y195: 0.05403939813 | Z195: 6613609.93 | AC195: 0.05386552518 | AD195: 7881564.15 | AG195: 0.05736874888 | AH195: 11715554.32 | AK195: 0.0563321356 | AL195: 12663786.97 | AP195: 0.0546628259 | AQ195: 13384228.24 | AT195: 0.05292799212 | AU195: 14685795.2 | AX195: 0.05649885307 | AY195: 19389458.12 | BB195: 0.05574543809 | BC195: 20490490.11
A196: 04. 41% to 50% | B196: 41% to 50% | E196: 0.1155902962 | F196: =IFERROR(VLOOKUP(A196,[10]LVR!$A$2:$C$10,3,FALSE),0) -> 4105577.77 | I196: 0.1081333956 | J196: 4540500.18 | M196: 0.1017241147 | N196: 5945536.04 | Q196: 0.119915124 | R196: 11504882.63 | U196: 0.1142482417 | V196: 12216486.74 | Y196: 0.1076318658 | Z196: 13172522.29 | AC196: 0.1017553867 | AD196: 14888773.58 | AG196: 0.1093167989 | AH196: 22324121.06 | AK196: 0.1051088975 | AL196: 23629082.62 | AP196: 0.1022410624 | AQ196: 25033790.19 | AT196: 0.09793747398 | AU196: 27174461.52 | AX196: 0.1011302211 | AY196: 34706194.55 | BB196: 0.09857759639 | BC196: 36234413.67
A197: 05. 51% to 60% | B197: 51% to 60% | E197: 0.13694714 | F197: =IFERROR(VLOOKUP(A197,[10]LVR!$A$2:$C$10,3,FALSE),0) -> 4864137.84 | I197: 0.1395995202 | J197: 5861756.61 | M197: 0.132233535 | N197: 7728740.14 | Q197: 0.1360054849 | R197: 13048622.13 | U197: 0.1340176474 | V197: 14330415.84 | Y197: 0.1354995909 | Z197: 16583112.89 | AC197: 0.1333641238 | AD197: 19513740.81 | AG197: 0.1377138988 | AH197: 28123232.48 | AK197: 0.1349383172 | AL197: 30334907.16 | AP197: 0.1321399631 | AQ197: 32354555.34 | AT197: 0.1306934632 | AU197: 36263182.44 | AX197: 0.1349200802 | AY197: 46302307.07 | BB197: 0.1324470357 | BC197: 48683888.19
A198: 06. 61% to 70% | B198: 61% to 70% | E198: 0.2054637016 | F198: =IFERROR(VLOOKUP(A198,[10]LVR!$A$2:$C$10,3,FALSE),0) -> 7297733.75 | I198: 0.2009169297 | J198: 8436462.67 | M198: 0.1843397906 | N198: 10774228.63 | Q198: 0.185736851 | R198: 17819942.97 | U198: 0.180405727 | V198: 19290661.62 | Y198: 0.1753982421 | Z198: 21466107.98 | AC198: 0.1678465518 | AD198: 24559184.39 | AG198: 0.1685146392 | AH198: 34413203.14 | AK198: 0.166466839 | AL198: 37422699.56 | AP198: 0.1620566103 | AQ198: 39679665.74 | AT198: 0.155951959 | AU198: 43271592.96 | AX198: 0.1574692483 | AY198: 54040803.11 | BB198: 0.1574514432 | BC198: 57874820.81
A199: 07. 71% to 80% | B199: 71% to 80% | E199: 0.1858909393 | F199: =IFERROR(VLOOKUP(A199,[10]LVR!$A$2:$C$10,3,FALSE),0) -> 6602541.33 | I199: 0.1845336619 | J199: 7748532.45 | M199: 0.1894828521 | N199: 11074828.52 | Q199: 0.179211555 | R199: 17193893.79 | U199: 0.1772023912 | V199: 18948131.1 | Y199: 0.1744117063 | Z199: 21345370.83 | AC199: 0.1765297555 | AD199: 25829704.39 | AG199: 0.16843897 | AH199: 34397750.36 | AK199: 0.1625553791 | AL199: 36543380.97 | AP199: 0.1625997708 | AQ199: 39812658.93 | AT199: 0.163172532 | AU199: 45275066.96 | AX199: 0.161630179 | AY199: 55468764.69 | BB199: 0.1586728404 | BC199: 58323772.83
A200: 08. 81% to 90% | B200: 81% to 90% | E200: 0.1452487327 | F200: =IFERROR(VLOOKUP(A200,[10]LVR!$A$2:$C$10,3,FALSE),0) -> 5158996.8 | I200: 0.1563065743 | J200: 6563282.55 | M200: 0.156623827 | N200: 9154295.53 | Q200: 0.1448082534 | R200: 13893176.3 | U200: 0.1482551821 | V200: 15852825.73 | Y200: 0.1532282176 | Z200: 18752830.28 | AC200: 0.1574659161 | AD200: 23040297.39 | AG200: 0.1520216068 | AH200: 31045079.89 | AK200: 0.157758825 | AL200: 35465088.11 | AP200: 0.1611551995 | AQ200: 39458954.73 | AT200: 0.1647284816 | AU200: 45706792.33 | AX200: 0.1618386593 | AY200: 55540311.64 | BB200: 0.1621507121 | BC200: 59602142.83
A201: 09. 91% to 100% | B201: 91% to 100% | E201: 0.1423970997 | F201: =IFERROR(VLOOKUP(A201,[10]LVR!$A$2:$C$10,3,FALSE),0) -> 5057711.47 | I201: 0.1483858423 | J201: 6230692.56 | M201: 0.1723372995 | N201: 10072711.16 | Q201: 0.156861982 | R201: 15049633.71 | U201: 0.1716600581 | V201: 18355493.2 | Y201: 0.1807489913 | Z201: 22120959.24 | AC201: 0.1900462594 | AD201: 27807429.34 | AG201: 0.1853882283 | AH201: 37859041.74 | AK201: 0.1966059098 | AL201: 44198135.43 | AP201: 0.205093347 | AQ201: 50217238.53 | AT201: 0.2143185987 | AU201: 59466435.85 | AX201: 0.205397164 | AY201: 70488859.39 | BB201: 0.2148188923 | BC201: 78961517.56
A202: > 100% | B202: > 100% | E202: 0 | F202: =IFERROR(VLOOKUP(A202,[10]LVR!$A$2:$C$10,3,FALSE),0) -> 0 | I202: 0 | J202: 0 | M202: 0 | N202: 0 | Q202: 0 | R202: 0 | U202: 0 | V202: 0 | Y202: 0 | Z202: 0 | AC202: 0 | AD202: 0 | AG202: 0 | AH202: 0 | AK202: 0 | AL202: 0 | AP202: 0 | AQ202: 0 | AT202: 0 | AU202: 0 | AX202: 0 | AY202: 0 | BB202: 0 | BC202: 0
E203: =SUM(E193:E202) -> 1 | F203: =SUM(F193:F202) -> 35518360.15 | I203: 1 | J203: 41989804.85 | M203: 1 | N203: 58447655.79 | Q203: 1 | R203: 95941881.61 | U203: 1 | V203: 106929319.5 | Y203: 1 | Z203: 122384966.5 | AC203: 1 | AD203: 146319266.8 | AG203: =SUM(AG193:AG202) -> 1 | AH203: =SUM(AH193:AH202) -> 204214917.5 | AK203: 1 | AL203: 224805731.8 | AP203: 1 | AQ203: 244850646.1 | AT203: 1 | AU203: 277467453.6 | AX203: 1 | AY203: 343183216.4 | BB203: 1 | BC203: 367572501.2
B205: New v Used
A206: New | B206: New | E206: =F206/F$209 -> 0.8352047925 | F206: =IFERROR(VLOOKUP(A206,'[10]new used'!$A$2:$C$3,3,FALSE),0) -> 29665104.62 | I206: 0.8366648639 | J206: 35131394.36 | M206: 0.8392305759 | N206: 49051059.83 | Q206: 0.837388315 | R206: 80340610.58 | U206: 0.8397179274 | V206: 89790466.55 | Y206: 0.8426291621 | Z206: 103125141.8 | AC206: 0.8474215166 | AD206: 123994095 | AG206: =AH206/AH$209 -> 0.8462428534 | AH206: 172815414.5 | AK206: 0.8498436742 | AL206: 191049729.1 | AP206: 0.8501134544 | AQ206: 208150828.6 | AT206: 0.8466162811 | AU206: 234908463.7 | AX206: 0.8440846783 | AY206: 289675694.8 | BB206: 0.8419821362 | BC206: 309489479.8
A207: USed | B207: Used | E207: =F207/F$209 -> 0.1647952075 | F207: =IFERROR(VLOOKUP(A207,'[10]new used'!$A$2:$C$3,3,FALSE),0) -> 5853255.53 | I207: 0.1633351361 | J207: 6858410.49 | M207: 0.1607694241 | N207: 9396595.96 | Q207: 0.162611685 | R207: 15601271.03 | U207: 0.1602820726 | V207: 17138852.95 | Y207: 0.1573708379 | Z207: 19259824.73 | AC207: 0.1525784834 | AD207: 22325171.82 | AG207: =AH207/AH$209 -> 0.1537571466 | AH207: 31399503 | AK207: 0.1501563258 | AL207: 33756002.72 | AP207: 0.1498865456 | AQ207: 36699817.54 | AT207: 0.1533837189 | AU207: 42558989.9 | AX207: 0.1559153217 | AY207: 53507521.6 | BB207: 0.1580178638 | BC207: 58083021.44
A208: Used
E209: =SUM(E206:E207) -> 1 | F209: =SUM(F206:F207) -> 35518360.15 | I209: 1 | J209: 41989804.85 | M209: 1 | N209: 58447655.79 | Q209: 1 | R209: 95941881.61 | U209: 1 | V209: 106929319.5 | Y209: 1 | Z209: 122384966.5 | AC209: 1 | AD209: 146319266.8 | AG209: =SUM(AG206:AG207) -> 1 | AH209: =SUM(AH206:AH208) -> 204214917.5 | AK209: 1 | AL209: 224805731.8 | AP209: 1 | AQ209: 244850646.1 | AT209: 1 | AU209: 277467453.6 | AX209: 1 | AY209: 343183216.4 | BB209: 1 | BC209: 367572501.2
B211: Contract Type
A212: Finance Lease | B212: Finance Lease | E212: =F212/F$215 -> 0.001032848922 | F212: =IFERROR(VLOOKUP(A212,'[10]loan type'!$A$2:$C$4,3,FALSE),0) -> 36685.1 | I212: 0.003528330997 | J212: 148153.93 | M212: 0.009411701677 | N212: 550091.9 | Q212: 0.007246961581 | R212: 695287.13 | U212: 0.01152396495 | V212: 1232249.73 | Y212: 0.01134175994 | Z212: 1388060.91 | AC212: 0.01210935749 | AD212: 1771832.31 | AG212: =AH212/AH$215 -> 0.01031575727 | AH212: 2106631.52 | AK212: 0.01431764454 | AL212: 3218688.56 | AP212: 0.0143945514 | AQ212: 3524515.21 | AT212: 0.01654725846 | AU212: 4591325.67 | AX212: 0.01496701541 | AY212: 5136428.49 | BB212: 0.01562613996 | BC212: 5743739.35
A213: Goods Mortgage | B213: Goods Mortgage | E213: =F213/F$215 -> 0.9910010708 | F213: =IFERROR(VLOOKUP(A213,'[10]loan type'!$A$2:$C$4,3,FALSE),0) -> 35198732.94 | I213: 0.9882107685 | J213: 41494777.32 | M213: 0.9818830395 | N213: 57388761.92 | Q213: 0.9848762501 | R213: 94490880.59 | U213: 0.9772833497 | V213: 104500243.5 | Y213: 0.9777800828 | Z213: 119665582.7 | AC213: 0.9772314818 | AD213: 142987793.9 | AG213: =AH213/AH$215 -> 0.9774622582 | AH213: 199612374.4 | AK213: 0.9736240985 | AL213: 218876278 | AP213: 0.9738853731 | AQ213: 238456462.8 | AT213: 0.970885962 | AU213: 269389255.6 | AX213: 0.9709367784 | AY213: 333209206.5 | BB213: 0.9681795041 | BC213: 355876162
A214: Hire Purchase | B214: Hire Purchase | E214: =F214/F$215 -> 0.007966080326 | F214: =IFERROR(VLOOKUP(A214,'[10]loan type'!$A$2:$C$4,3,FALSE),0) -> 282942.11 | I214: 0.008260900503 | J214: 346873.6 | M214: 0.008705258802 | N214: 508801.97 | Q214: 0.007876788294 | R214: 755713.89 | U214: 0.01119268537 | V214: 1196826.23 | Y214: 0.01087815724 | Z214: 1331322.91 | AC214: 0.01065916071 | AD214: 1559640.58 | AG214: =AH214/AH$215 -> 0.01222198452 | AH214: 2495911.56 | AK214: 0.012058257 | AL214: 2710765.29 | AP214: 0.01172007551 | AQ214: 2869668.06 | AT214: 0.01256677954 | AU214: 3486872.32 | AX214: 0.01409620619 | AY214: 4837581.38 | BB214: 0.01619435589 | BC214: 5952599.9
... 31 more rows

Sheet Note Balances
C1: TOTAL NOTE BALANCES
D2: Total Notes | E2: Class A1 Notes | F2: Class A2 Notes | G2: Class B Notes | H2: Class C Notes
C3: Initial Invested Amount | D3: 400000000 | E3: 100000000 | F3: 244800000 | G3: 13600000 | H3: 12000000
A4: (a) | C4: Invested Amount as at Previous Payment Date: 16 October 2013 | D4: 367899561 | E4: 67899561.03 | F4: 244800000 | G4: 13600000 | H4: 12000000
A5: (b) | C5: Stated Amount as at Previous Payment Date: 16 October 2013 | D5: 367572501.2 | E5: 67899561.03 | F5: 244800000 | G5: 13600000 | H5: 12000000
A6: (d) | C6: Principal Payments to Noteholders on Payment Date | D6: 24290790.89 | E6: 24290790.89 | F6: 0 | G6: 0 | H6: 0
C7: Gross Aggregate Charge-Offs | D7: 0 | E7: 0 | F7: 0 | G7: 0 | H7: 0
C8: Gross Aggregate Reinstatements of charge-offs | D8: 0 | E8: 0 | F8: 0 | G8: 0 | H8: 0
A9: (e) | C9: Aggregate Charge-Offs for this Collection Period | D9: 98493.91 | E9: 0 | F9: 0 | G9: 0 | H9: 0
A10: (f) | C10: Reinstatements relating to Charge-offs that have occurred this Collection Period | D10: 0 | E10: 0 | F10: 0 | G10: 0 | H10: 0
C11: Aggregate Carry Over Charge-offs not previously reinstated | D11: 0 | E11: 0 | F11: 0 | G11: 0 | H11: 0
C12: Reinstatements of Carry Over Charge-offs not previously reinstated | D12: 0 | E12: 0 | F12: 0 | G12: 0 | H12: 0
C13: Aggregate Charge-Offs not reinstated and to be carried over to next period | D13: 98493.91 | E13: 0 | F13: 0 | G13: 0 | H13: 0
C14: Invested Amount as at Payment Date: 16 January 2014 | D14: 343608770.1 | E14: 43608770.14 | F14: 244800000 | G14: 13600000 | H14: 12000000
C15: Stated Amount as at Payment Date: 16 January 2014 | D15: 343183216.4 | E15: 43608770.14 | F15: 244800000 | G15: 13600000 | H15: 12000000
C16: Bond Factor at Payment Date: 16 January 2014 | E16: 0.4360877014 | F16: 1 | G16: 1 | H16: 1
C17: Coupon Margin | E17: 0.0045 | F17: 0.011 | G17: 0.0175 | H17: 0.025
C18: Coupon Rate (3 month BBSW + margin) | E18: 0.03045 | F18: 0.03695 | G18: 0.04345 | H18: 0.05095
C19: Days in Coupon Period | E19: 92 | F19: 92 | G19: 92 | H19: 92
C20: Coupon Entitlement to be paid out on the current Payment Date: 16 January 2014 | E20: 521133.78 | F20: 2279926.36 | G20: 148944.22 | H20: 154106.3
C23: TOTAL NOTE BALANCES
D24: Total Notes | E24: Class A1 Notes | F24: Class A2 Notes | G24: Class B Notes | H24: Class C Notes
C25: Initial Invested Amount | D25: 400000000 | E25: 100000000 | F25: 244800000 | G25: 13600000 | H25: 12000000
A26: (a) | C26: Invested Amount as at Previous Payment Date: 16 January 2014 | D26: 343608770.1 | E26: 43608770.14 | F26: 244800000 | G26: 13600000 | H26: 12000000
A27: (b) | C27: Stated Amount as at Previous Payment Date: 16 January 2014 | D27: 343183216.4 | E27: 43608770.14 | F27: 244800000 | G27: 13600000 | H27: 12000000
A28: (d) | C28: Principal Payments to Noteholders on Payment Date | D28: 64728376.42 | E28: 43608770.14 | F28: 21119606.28 | G28: 0 | H28: 0
C29: Gross Aggregate Charge-Offs | D29: 425553.73 | E29: 0 | F29: 0 | G29: 0 | H29: 0
C30: Gross Aggregate Reinstatements of charge-offs | D30: 0 | E30: 0 | F30: 0 | G30: 0 | H30: 0
A31: (e) | C31: Aggregate Charge-Offs for this Collection Period | D31: 987386.36 | E31: 0 | F31: 0 | G31: 0 | H31: 0
A32: (f) | C32: Reinstatements relating to Charge-offs that have occurred this Collection Period | D32: 0 | E32: 0 | F32: 0 | G32: 0 | H32: 0
C33: Aggregate Carry Over Charge-offs not previously reinstated | D33: 425553.73 | E33: 0 | F33: 0 | G33: 0 | H33: 0
C34: Reinstatements of Carry Over Charge-offs not previously reinstated | D34: 0 | E34: 0 | F34: 0 | G34: 0 | H34: 0
C35: Aggregate Charge-Offs not reinstated and to be carried over to next period | D35: 1412940.09 | E35: 0 | F35: 0 | G35: 0 | H35: 0
C36: Invested Amount as at Payment Date: 16 April 2014 | D36: 278880393.7 | E36: 0 | F36: 223680393.7 | G36: 13600000 | H36: 12000000
C37: Stated Amount as at Payment Date: 16 April 2014 | D37: 277467453.6 | E37: 0 | F37: 223680393.7 | G37: 13600000 | H37: 12000000
C38: Bond Factor at Payment Date: 16 April 2014 | E38: 0 | F38: 0.9137270985 | G38: 1 | H38: 1
C39: Coupon Margin | E39: 0.0045 | F39: 0.011 | G39: 0.0175 | H39: 0.025
C40: Coupon Rate (3 month BBSW + margin) | E40: 0.03075 | F40: 0.03725 | G40: 0.04375 | H40: 0.05125
C41: Days in Coupon Period | E41: 90 | F41: 90 | G41: 90 | H41: 90
C42: Coupon Entitlement to be paid out on the current Payment Date: 16 April 2014 | E42: 330650.06 | F42: 2248471.23 | G42: 146712.33 | H42: 151643.84
C45: TOTAL NOTE BALANCES
D46: Total Notes | E46: Class A1 Notes | F46: Class A2 Notes | G46: Class B Notes | H46: Class C Notes
C47: Initial Invested Amount | D47: 400000000 | E47: 100000000 | F47: 244800000 | G47: 13600000 | H47: 12000000
A48: (a) | C48: Invested Amount as at Previous Payment Date: 16 April 2014 | D48: 278880393.7 | E48: 0 | F48: 223680393.7 | G48: 13600000 | H48: 12000000
A49: (b) | C49: Stated Amount as at Previous Payment Date: 16 April 2014 | D49: 277467453.6 | E49: 0 | F49: 223680393.7 | G49: 13600000 | H49: 12000000
A50: (d) | C50: Principal Payments to Noteholders on Payment Date | D50: 32255503 | E50: 0 | F50: 32255503 | G50: 0 | H50: 0
C51: Gross Aggregate Charge-Offs | D51: 1412940.09 | E51: 0 | F51: 0 | G51: 0 | H51: 0
C52: Gross Aggregate Reinstatements of charge-offs | D52: 0 | E52: 0 | F52: 0 | G52: 0 | H52: 0
A53: (e) | C53: Aggregate Charge-Offs for this Collection Period | D53: 361304.52 | E53: 0 | F53: 0 | G53: 0 | H53: 0
A54: (f) | C54: Reinstatements relating to Charge-offs that have occurred this Collection Period | D54: 0 | E54: 0 | F54: 0 | G54: 0 | H54: 0
C55: Aggregate Carry Over Charge-offs not previously reinstated | D55: 1412940.09 | E55: 0 | F55: 0 | G55: 0 | H55: 0
C56: Reinstatements of Carry Over Charge-offs not previously reinstated | D56: 0 | E56: 0 | F56: 0 | G56: 0 | H56: 0
C57: Aggregate Charge-Offs not reinstated and to be carried over to next period | D57: 1774244.61 | E57: 0 | F57: 0 | G57: 0 | H57: 0
C58: Invested Amount as at Payment Date: 16 July 2014 | D58: 246624890.7 | E58: 0 | F58: 191424890.7 | G58: 13600000 | H58: 12000000
C59: Stated Amount as at Payment Date: 16 July 2014 | D59: 244850646.1 | E59: 0 | F59: 191424890.7 | G59: 13600000 | H59: 12000000
C60: Bond Factor at Payment Date: 16 July 2014 | E60: 0 | F60: 0.7819644229 | G60: 1 | H60: 1
C61: Coupon Margin | E61: 0.0045 | F61: 0.011 | G61: 0.0175 | H61: 0.025
C62: Coupon Rate (3 month BBSW + margin) | E62: 0.03115 | F62: 0.03765 | G62: 0.04415 | H62: 0.05165
C63: Days in Coupon Period | E63: 91 | F63: 91 | G63: 91 | H63: 91
C64: Coupon Entitlement to be paid out on the current Payment Date: 16 July 2014 | E64: 0 | F64: 2099623.51 | G64: 149698.74 | H64: 154525.48
C67: TOTAL NOTE BALANCES
D68: Total Notes | E68: Class A1 Notes | F68: Class A2 Notes | G68: Class B Notes | H68: Class C Notes
C69: Initial Invested Amount | D69: 400000000 | E69: 100000000 | F69: 244800000 | G69: 13600000 | H69: 12000000
C70: Invested Amount as at Previous Payment Date: 16 July 2014 | D70: 246624890.7 | E70: 0 | F70: 191424890.7 | G70: 13600000 | H70: 12000000
C71: Stated Amount as at Previous Payment Date: 16 July 2014 | D71: 244850646.1 | E71: 0 | F71: 191424890.7 | G71: 13600000 | H71: 12000000
C72: Principal Payments to Noteholders on Payment Date | D72: 19466769.46 | E72: 0 | F72: 19466769.46 | G72: 0 | H72: 0
C73: Gross Aggregate Charge-Offs | D73: 1774244.61 | E73: 0 | F73: 0 | G73: 0 | H73: 0
C74: Gross Aggregate Reinstatements of charge-offs | D74: 0 | E74: 0 | F74: 0 | G74: 0 | H74: 0
C75: Aggregate Charge-Offs for this Collection Period | D75: 578144.82 | E75: 0 | F75: 0 | G75: 0 | H75: 0
C76: Reinstatements relating to Charge-offs that have occurred this Collection Period | D76: 0 | E76: 0 | F76: 0 | G76: 0 | H76: 0
C77: Aggregate Carry Over Charge-offs not previously reinstated | D77: 1774244.61 | E77: 0 | F77: 0 | G77: 0 | H77: 0
C78: Reinstatements of Carry Over Charge-offs not previously reinstated | D78: 0 | E78: 0 | F78: 0 | G78: 0 | H78: 0
C79: Aggregate Charge-Offs not reinstated and to be carried over to next period | D79: 2352389.43 | E79: 0 | F79: 0 | G79: 0 | H79: 0
C80: Invested Amount as at Payment Date: 16 October 2014 | D80: 227158121.3 | E80: 0 | F80: 171958121.3 | G80: 13600000 | H80: 12000000
C81: Stated Amount as at Payment Date: 16 October 2014 | D81: 224805731.8 | E81: 0 | F81: 171958121.3 | G81: 13600000 | H81: 12000000
C82: Bond Factor at Payment Date: 16 October 2014 | E82: 0 | F82: 0.7024433058 | G82: 1 | H82: 1
C83: Coupon Margin | E83: 0.0045 | F83: 0.011 | G83: 0.0175 | H83: 0.025
C84: Coupon Rate (3 month BBSW + margin) | E84: 0.03095 | F84: 0.03745 | G84: 0.04395 | H84: 0.05145
C85: Days in Coupon Period | E85: 92 | F85: 92 | G85: 92 | H85: 92
C86: Coupon Entitlement to be paid out on the current Payment Date: 16 October 2014 | E86: 0 | F86: 1806946.08 | G86: 150658.19 | H86: 155618.63
C90: TOTAL NOTE BALANCES
D91: Total Notes | E91: Class A1 Notes | F91: Class A2 Notes | G91: Class B Notes | H91: Class C Notes
C92: Initial Invested Amount | D92: 400000000 | E92: 100000000 | F92: 244800000 | G92: 13600000 | H92: 12000000
C93: Invested Amount as at Previous Payment Date: 16 October 2014 | D93: 227158121.3 | E93: 0 | F93: 171958121.3 | G93: 13600000 | H93: 12000000
C94: Stated Amount as at Previous Payment Date: 16 October 2014 | D94: 224805731.8 | E94: 0 | F94: 171958121.3 | G94: 13600000 | H94: 12000000
C95: Principal Payments to Noteholders on Payment Date | D95: 20470554.46 | E95: 0 | F95: 20470554.46 | G95: 0 | H95: 0
C96: Gross Aggregate Charge-Offs | D96: 2352389.43 | E96: 0 | F96: 0 | G96: 0 | H96: 0
C97: Gross Aggregate Reinstatements of charge-offs | D97: 0 | E97: 0 | F97: 0 | G97: 0 | H97: 0
C98: Aggregate Charge-Offs for this Collection Period | D98: 120259.87 | E98: 0 | F98: 0 | G98: 0 | H98: 0
C99: Reinstatements relating to Charge-offs that have occurred this Collection Period | D99: 0 | E99: 0 | F99: 0 | G99: 0 | H99: 0
C100: Aggregate Carry Over Charge-offs not previously reinstated | D100: 2352389.43 | E100: 0 | F100: 0 | G100: 0 | H100: 0
C101: Reinstatements of Carry Over Charge-offs not previously reinstated | D101: 0 | E101: 0 | F101: 0 | G101: 0 | H101: 0
C102: Aggregate Charge-Offs not reinstated and to be carried over to next period | D102: 2472649.3 | E102: 0 | F102: 0 | G102: 0 | H102: 0
C103: Invested Amount as at Payment Date: 16 January 2015 | D103: 206687566.8 | E103: 0 | F103: 151487566.8 | G103: 13600000 | H103: 12000000
C104: Stated Amount as at Payment Date: 16 January 2015 | D104: 204214917.5 | E104: 0 | F104: 151487566.8 | G104: 13600000 | H104: 12000000
C105: Bond Factor at Payment Date: 16 January 2015 | E105: 0 | F105: 0.6188217598 | G105: 1 | H105: 1
C106: Coupon Margin | E106: 0.0045 | F106: 0.011 | G106: 0.0175 | H106: 0.025
C107: Coupon Rate (3 month BBSW + margin) | E107: 0.031417 | F107: 0.037917 | G107: 0.044417 | H107: 0.051917
C108: Days in Coupon Period | E108: 92 | F108: 92 | G108: 92 | H108: 92
C109: Coupon Entitlement to be paid out on the current Payment Date: 16 January 2015 | E109: 0 | F109: 1643431.56 | G109: 152259.04 | H109: 157031.15
C112: TOTAL NOTE BALANCES
D113: Total Notes | E113: Class A1 Notes | F113: Class A2 Notes | G113: Class B Notes | H113: Class C Notes
C114: Initial Invested Amount | D114: 400000000 | E114: 100000000 | F114: 244800000 | G114: 13600000 | H114: 12000000
C115: Invested Amount as at Previous Payment Date: 16 January 2015 | D115: 206687566.8 | E115: 0 | F115: 151487566.8 | G115: 13600000 | H115: 12000000
C116: Stated Amount as at Previous Payment Date: 16 January 2015 | D116: 204214917.5 | E116: 0 | F116: 151487566.8 | G116: 13600000 | H116: 12000000
C117: Principal Payments to Noteholders on Payment Date | D117: 60368299.98 | E117: 0 | F117: 45554928.3 | G117: 3649671.28 | H117: 3220298.19
C118: Gross Aggregate Charge-Offs | D118: 2472649.3 | E118: 0 | F118: 0 | G118: 0 | H118: 0
C119: Gross Aggregate Reinstatements of charge-offs | D119: 0 | E119: 0 | F119: 0 | G119: 0 | H119: 0
C120: Aggregate Charge-Offs for this Collection Period | D120: 184312.36 | E120: 0 | F120: 0 | G120: 0 | H120: 0
C121: Reinstatements relating to Charge-offs that have occurred this Collection Period | D121: 184312.36 | E121: 0 | F121: 0 | G121: 0 | H121: 0
C122: Aggregate Carry Over Charge-offs not previously reinstated | D122: 2472649.3 | E122: 0 | F122: 0 | G122: 0 | H122: 0
C123: Reinstatements of Carry Over Charge-offs not previously reinstated | D123: 2472649.3 | E123: 0 | F123: 0 | G123: 0 | H123: 0
C124: Aggregate Charge-Offs not reinstated and to be carried over to next period | D124: 0 | E124: 0 | F124: 0 | G124: 0 | H124: 0
C125: Invested Amount as at Payment Date: 16 April 2015 | D125: 146319266.8 | E125: 0 | F125: 105932638.5 | G125: 9950328.72 | H125: 8779701.81
C126: Stated Amount as at Payment Date: 16 April 2015 | D126: 146319266.8 | E126: 0 | F126: 105932638.5 | G126: 9950328.72 | H126: 8779701.81
C127: Bond Factor at Payment Date: 16 April 2015 | E127: 0 | F127: 0.4327313664 | G127: 0.7316418176 | H127: 0.7316418175
C128: Coupon Margin | E128: 0.0045 | F128: 0.011 | G128: 0.0175 | H128: 0.025
C129: Coupon Rate (3 month BBSW + margin) | E129: 0.031683 | F129: 0.038183 | G129: 0.044683 | H129: 0.052183
C130: Days in Coupon Period | E130: 90 | F130: 90 | G130: 90 | H130: 90
C131: Coupon Entitlement to be paid out on the current Payment Date: 16 April 2015 | E131: 0 | F131: 1426253.37 | G131: 149841.07 | H131: 154404.49
C135: TOTAL NOTE BALANCES
D136: Total Notes | E136: Class A1 Notes | F136: Class A2 Notes | G136: Class B Notes | H136: Class C Notes
C137: Initial Invested Amount | D137: 400000000 | E137: 100000000 | F137: 244800000 | G137: 13600000 | H137: 12000000
C138: Invested Amount as at Previous Payment Date: 16 April 2015 | D138: 146319266.8 | E138: 0 | F138: 105932638.5 | G138: 9950328.72 | H138: 8779701.81
C139: Stated Amount as at Previous Payment Date: 16 April 2015 | D139: 146319266.8 | E139: 0 | F139: 105932638.5 | G139: 9950328.72 | H139: 8779701.81
C140: Principal Payments to Noteholders on Payment Date | D140: 23934300.32 | E140: 0 | F140: 17328022.74 | G140: 1627633.61 | H140: 1436147.3
C141: Gross Aggregate Charge-Offs | D141: 0 | E141: 0 | F141: 0 | G141: 0 | H141: 0
C142: Gross Aggregate Reinstatements of charge-offs | D142: 0 | E142: 0 | F142: 0 | G142: 0 | H142: 0
C143: Aggregate Charge-Offs for this Collection Period | D143: 5555.68 | E143: 0 | F143: 0 | G143: 0 | H143: 0
C144: Reinstatements relating to Charge-offs that have occurred this Collection Period | D144: 5555.68 | E144: 0 | F144: 0 | G144: 0 | H144: 0
C145: Aggregate Carry Over Charge-offs not previously reinstated | D145: 0 | E145: 0 | F145: 0 | G145: 0 | H145: 0
C146: Reinstatements of Carry Over Charge-offs not previously reinstated | D146: 0 | E146: 0 | F146: 0 | G146: 0 | H146: 0
C147: Aggregate Charge-Offs not reinstated and to be carried over to next period | D147: 0 | E147: 0 | F147: 0 | G147: 0 | H147: 0
C148: Invested Amount as at Payment Date: 16 July 2015 | D148: 122384966.5 | E148: 0 | F148: 88604615.76 | G148: 8322695.11 | H148: 7343554.51
C149: Stated Amount as at Payment Date: 16 July 2015 | D149: 122384966.5 | E149: 0 | F149: 88604615.76 | G149: 8322695.11 | H149: 7343554.51
C150: Bond Factor at Payment Date: 16 July 2015 | E150: 0 | F150: 0.3619469598 | G150: 0.6119628757 | H150: 0.6119628758
C151: Coupon Margin | E151: 0.0045 | F151: 0.011 | G151: 0.0175 | H151: 0.025
C152: Coupon Rate (3 month BBSW + margin) | E152: 0.027067 | F152: 0.033567 | G152: 0.040067 | H152: 0.047567
C153: Days in Coupon Period | E153: 91 | F153: 91 | G153: 91 | H153: 91
C154: Coupon Entitlement to be paid out on the current Payment Date: 16 July 2015 | E154: 0 | F154: 886524.71 | G154: 99396.89 | H154: 104119.98
C158: TOTAL NOTE BALANCES
D159: Total Notes | E159: Class A1 Notes | F159: Class A2 Notes | G159: Class B Notes | H159: Class C Notes
C160: Initial Invested Amount | D160: 400000000 | E160: 100000000 | F160: 244800000 | G160: 13600000 | H160: 12000000
C161: Invested Amount as at Previous Payment Date: 16 July 2015 | D161: 122384966.5 | E161: 0 | F161: 88604615.76 | G161: 8322695.11 | H161: 7343554.51
C162: Stated Amount as at Previous Payment Date: 16 July 2015 | D162: 122384966.5 | E162: 0 | F162: 88604615.76 | G162: 8322695.11 | H162: 7343554.51
C163: Principal Payments to Noteholders on Payment Date | D163: 15229783.14 | E163: 0 | F163: 15229783.14 | G163: 0 | H163: 0
C164: Gross Aggregate Charge-Offs | D164: 0 | E164: 0 | F164: 0 | G164: 0 | H164: 0
C165: Gross Aggregate Reinstatements of charge-offs | D165: 0 | E165: 0 | F165: 0 | G165: 0 | H165: 0
C166: Aggregate Charge-Offs for this Collection Period | D166: 225863.86 | E166: 0 | F166: 0 | G166: 0 | H166: 0
C167: Reinstatements relating to Charge-offs that have occurred this Collection Period | D167: 0 | E167: 0 | F167: 0 | G167: 0 | H167: 0
C168: Aggregate Carry Over Charge-offs not previously reinstated | D168: 0 | E168: 0 | F168: 0 | G168: 0 | H168: 0
C169: Reinstatements of Carry Over Charge-offs not previously reinstated | D169: 0 | E169: 0 | F169: 0 | G169: 0 | H169: 0
C170: Aggregate Charge-Offs not reinstated and to be carried over to next period | D170: 225863.86 | E170: 0 | F170: 0 | G170: 0 | H170: 0
C171: Invested Amount as at Payment Date: 16 October 2015 | D171: 107155183.4 | E171: 0 | F171: 73374832.62 | G171: 8322695.11 | H171: 7343554.51
C172: Stated Amount as at Payment Date: 16 October 2015 | D172: 106929319.5 | E172: 0 | F172: 73374832.62 | G172: 8322695.11 | H172: 7343554.51
C173: Bond Factor at Payment Date: 16 October 2015 | E173: 0 | F173: 0.2997337934 | G173: 0.6119628757 | H173: 0.6119628758
C174: Coupon Margin | E174: 0.0045 | F174: 0.011 | G174: 0.0175 | H174: 0.025
C175: Coupon Rate (3 month BBSW + margin) | E175: 0.0259 | F175: 0.0324 | G175: 0.0389 | H175: 0.0464
C176: Days in Coupon Period | E176: 92 | F176: 92 | G176: 92 | H176: 92
C177: Coupon Entitlement to be paid out on the current Payment Date: 16 October 2015 | E177: 0 | F177: 723596.27 | G177: 81603.46 | H177: 85885.38
C181: TOTAL NOTE BALANCES
D182: Total Notes | E182: Class A1 Notes | F182: Class A2 Notes | G182: Class B Notes | H182: Class C Notes
C183: Initial Invested Amount | D183: 400000000 | E183: 100000000 | F183: 244800000 | G183: 13600000 | H183: 12000000
C184: Invested Amount as at Previous Payment Date: 16 October 2015 | D184: 107155183.4 | E184: 0 | F184: 73374832.62 | G184: 8322695.11 | H184: 7343554.51
C185: Stated Amount as at Previous Payment Date: 16 October 2015 | D185: 106929319.5 | E185: 0 | F185: 73374832.62 | G185: 8322695.11 | H185: 7343554.51
C186: Principal Payments to Noteholders on Payment Date | D186: 10987437.89 | E186: 0 | F186: 10987437.89 | G186: 0 | H186: 0
C187: Gross Aggregate Charge-Offs | D187: 225863.86 | E187: 0 | F187: 0 | G187: 0 | H187: 0
C188: Gross Aggregate Reinstatements of charge-offs | D188: 0 | E188: 0 | F188: 0 | G188: 0 | H188: 0
C189: Aggregate Charge-Offs for this Collection Period | D189: 0 | E189: 0 | F189: 0 | G189: 0 | H189: 0
C190: Reinstatements relating to Charge-offs that have occurred this Collection Period | D190: 0 | E190: 0 | F190: 0 | G190: 0 | H190: 0
C191: Aggregate Carry Over Charge-offs not previously reinstated | D191: 225863.86 | E191: 0 | F191: 0 | G191: 0 | H191: 0
C192: Reinstatements of Carry Over Charge-offs not previously reinstated | D192: 0 | E192: 0 | F192: 0 | G192: 0 | H192: 0
C193: Aggregate Charge-Offs not reinstated and to be carried over to next period | D193: 225863.86 | E193: 0 | F193: 0 | G193: 0 | H193: 0
C194: Invested Amount as at Payment Date: 18 January 2016 | D194: 96167745.47 | E194: 0 | F194: 62387394.73 | G194: 8322695.11 | H194: 7343554.51
C195: Stated Amount as at Payment Date: 18 January 2016 | D195: 95941881.61 | E195: 0 | F195: 62387394.73 | G195: 8322695.11 | H195: 7343554.51
C196: Bond Factor at Payment Date: 18 January 2016 | E196: 0 | F196: 0.2548504687 | G196: 0.6119628757 | H196: 0.6119628758
C197: Coupon Margin | E197: 0.0045 | F197: 0.011 | G197: 0.0175 | H197: 0.025
C198: Coupon Rate (3 month BBSW + margin) | E198: 0.0259 | F198: 0.0324 | G198: 0.0389 | H198: 0.0464
C199: Days in Coupon Period | E199: 94 | F199: 94 | G199: 94 | H199: 94
C200: Coupon Entitlement to be paid out on the current Payment Date: 18 January 2016 | E200: 0 | F200: 612247.64 | G200: 83377.44 | H200: 87752.46
C204: TOTAL NOTE BALANCES
D205: Total Notes | E205: Class A1 Notes | F205: Class A2 Notes | G205: Class B Notes | H205: Class C Notes
C206: Initial Invested Amount | D206: 400000000 | E206: 100000000 | F206: 244800000 | G206: 13600000 | H206: 12000000
C207: Invested Amount as at Previous Payment Date: 18 January 2016 | D207: 96167745.47 | E207: 0 | F207: 62387394.73 | G207: 8322695.11 | H207: 7343554.51
C208: Stated Amount as at Previous Payment Date: 18 January 2016 | D208: 95941881.61 | E208: 0 | F208: 62387394.73 | G208: 8322695.11 | H208: 7343554.51
C209: Principal Payments to Noteholders on Payment Date | D209: 37720089.68 | E209: 0 | F209: 31539738.94 | G209: 1522695.11 | H209: 1343554.51
C210: Gross Aggregate Charge-Offs | D210: 225863.86 | E210: 0 | F210: 0 | G210: 0 | H210: 0
C211: Gross Aggregate Reinstatements of charge-offs | D211: 0 | E211: 0 | F211: 0 | G211: 0 | H211: 0
C212: Aggregate Charge-Offs for this Collection Period | D212: 0 | E212: 0 | F212: 0 | G212: 0 | H212: 0
C213: Reinstatements relating to Charge-offs that have occurred this Collection Period | D213: 0 | E213: 0 | F213: 0 | G213: 0 | H213: 0
C214: Aggregate Carry Over Charge-offs not previously reinstated | D214: 225863.86 | E214: 0 | F214: 0 | G214: 0 | H214: 0
C215: Reinstatements of Carry Over Charge-offs not previously reinstated | D215: 225863.86 | E215: 0 | F215: 0 | G215: 0 | H215: 0
C216: Aggregate Charge-Offs not reinstated and to be carried over to next period | D216: 0 | E216: 0 | F216: 0 | G216: 0 | H216: 0
C217: Invested Amount as at Payment Date: 18 April 2016 | D217: 58447655.79 | E217: 0 | F217: 30847655.79 | G217: 6800000 | H217: 6000000
C218: Stated Amount as at Payment Date: 18 April 2016 | D218: 58447655.79 | E218: 0 | F218: 30847655.79 | G218: 6800000 | H218: 6000000
C219: Bond Factor at Payment Date: 18 April 2016 | E219: 0 | F219: 0.1260116658 | G219: 0.5 | H219: 0.5
C220: Coupon Margin | E220: 0.0045 | F220: 0.011 | G220: 0.0175 | H220: 0.025
C221: Coupon Rate (3 month BBSW + margin) | E221: 0.0274 | F221: 0.0339 | G221: 0.0404 | H221: 0.0479
C222: Days in Coupon Period | E222: 91 | F222: 91 | G222: 91 | H222: 91
C223: Coupon Entitlement to be paid out on the current Payment Date: 18 April 2016 | E223: 0 | F223: 527284.59 | G223: 83828.92 | H223: 87698.14
... 40 more rows

Sheet Cumulative Defaults
A1: Cumulative Defaults & Losses
A3: Month | B3: Gross Losses | C3: Recoveries | D3: Net Losses
A4: 2013-09-01 | B4: 0.00081764955 | C4: 1.115709091e-06 | D4: =B4-C4 -> 0.0008165338409
A5: 2013-12-01 | B5: 0.001063884325 | C5: 0.0002373657091 | D5: 0.0008265186159
A6: 2014-03-01 | B6: 0.003532350225 | C6: 0.0002849178341 | D6: 0.003247432391
A7: 2014-06-01 | B7: 0.004435611525 | C7: 0.000467924275 | D7: 0.00396768725
A8: 2014-09-01 | B8: 0.005880973575 | C8: 0.001688596427 | D8: 0.004192377148
A9: 2014-12-01 | B9: 0.00618162325 | C9: 0.001999144836 | D9: 0.004182478414
A10: 2015-03-01 | B10: 0.00664240415 | C10: 0.00232689752 | D10: 0.00431550663
A11: 2015-06-01 | B11: 0.00665629335 | C11: 0.002654650205 | D11: 0.004001643145
A12: 2015-09-01 | B12: 0.007220953 | C12: 0.002859516432 | D12: 0.004361436568
A13: 2015-12-01 | B13: 0.007220953 | C13: 0.003080516432 | D13: 0.004140436568
A14: 2016-03-01 | B14: 0.007220953 | C14: 0.00349270457 | D14: 0.00372824843
A15: 2016-06-01 | B15: 0.007603509525 | C15: 0.00368662217 | D15: 0.003916887355
A16: 2016-09-01 | B16: =B15+'Collateral Tables'!E9/400000000 -> 0.007766926725 | C16: =C15+'Collateral Tables'!E23/400000000 -> 0.004273355745 | D16: =B16-C16 -> 0.00349357098
